Workbook

Sheet 男子スーパー
A1: 男子スーパーリーグ
C3: =B4 -> 高知工科大 | D3: =B6 -> 和歌山商業A | E3: =B8 -> 和歌山商業B | F3: =B10 -> 城南A | G3: =B12 -> 城南B | H3: =B14 -> 徳島商業A | I3: =B16 -> 徳島商業B | J3: =B18 -> 高松商業A | K3: =B20 -> 愛媛選抜 | L3: =B22 -> 松山商業A | M3: =B24 -> 松山商業B | N3: =B26 -> 松山東A | O3: =B28 -> 松山東B | P3: =B30 -> 松山北A | Q3: =B32 -> 松山北B | R3: 勝敗分 | S3: ポイント | T3: 得点率 | U3: 順位 | V3: チーム名 | W3: 勝 | X3: 負 | Y3: 分 | Z3: ポイント | AA3: 試合数 | AB3: 勝率
A4: 1 | B4: =V4 -> 高知工科大 | D4: × | E4: ○ | F4: ○ | G4: ○ | H4: ○ | I4: ○ | J4: △ | K4: × | L4: × | M4: ○ | N4: ○ | O4: ○ | P4: ○ | Q4: ○ | R4: =W4&" - "&X4&" - "&Y4 -> 10 - 3 - 1 | S4: =Z4 -> 35 | T4: =ROUND(AB4,2) -> 2.5 | U4: =RANK(AB4,AB$4:AB$33) -> 3 | V4: 高知工科大 | W4: =COUNTIF(C4:Q4,"○") -> 10 | X4: =COUNTIF(C4:Q4,"×") -> 3 | Y4: =COUNTIF(C4:Q4,"△") -> 1 | Z4: =W4*3+X4*1+Y4*2 -> 35 | AA4: =SUM(W4:Y5) -> 14 | AB4: =Z4/AA4 -> 2.5
D5: １－２ | E5: ２－０ | F5: ２－０ | G5: ２－０ | H5: ２－０ | I5: ２－０ | J5: １－１ | K5: １－２ | L5: １－２ | M5: ２－０ | N5: ２－０ | O5: ２－０ | P5: ２－１ | Q5: ２－０
A6: 2 | B6: =V6 -> 和歌山商業A | C6: ○ | F6: × | G6: ○ | H6: ○ | I6: ○ | J6: × | K6: × | L6: × | M6: ○ | N6: × | O6: ○ | P6: × | Q6: ○ | R6: =W6&" - "&X6&" - "&Y6 -> 7 - 6 - 0 | S6: =Z6 -> 27 | T6: =ROUND(AB6,2) -> 2.08 | U6: =RANK(AB6,AB$4:AB$33) -> 9 | V6: 和歌山商業A | W6: =COUNTIF(C6:Q6,"○") -> 7 | X6: =COUNTIF(C6:Q6,"×") -> 6 | Y6: =COUNTIF(C6:Q6,"△") -> 0 | Z6: =W6*3+X6*1+Y6*2 -> 27 | AA6: =SUM(W6:Y7) -> 13 | AB6: =Z6/AA6 -> 2.076923077
C7: ２－１ | F7: １－２ | G7: ２－０ | H7: ２－０ | I7: ２－０ | J7: ０－２ | K7: ０－２ | L7: ０－２ | M7: ２－０ | N7: ０－２ | O7: ２－０ | P7: １－２ | Q7: ２－０
A8: 3 | B8: =V8 -> 和歌山商業B | C8: × | F8: × | G8: ○ | H8: ○ | I8: ○ | J8: × | K8: × | M8: × | N8: × | O8: ○ | P8: × | Q8: × | R8: =W8&" - "&X8&" - "&Y8 -> 4 - 8 - 0 | S8: =Z8 -> 20 | T8: =ROUND(AB8,2) -> 1.67 | U8: =RANK(AB8,AB$4:AB$33) -> 10 | V8: 和歌山商業B | W8: =COUNTIF(C8:Q8,"○") -> 4 | X8: =COUNTIF(C8:Q8,"×") -> 8 | Y8: =COUNTIF(C8:Q8,"△") -> 0 | Z8: =W8*3+X8*1+Y8*2 -> 20 | AA8: =SUM(W8:Y9) -> 12 | AB8: =Z8/AA8 -> 1.666666667
C9: ０－２ | F9: ０－２ | G9: ２－０ | H9: ２－０ | I9: ２－０ | J9: ０－２ | K9: ０－２ | M9: １－２ | N9: ０－２ | O9: ２－０ | P9: ０－２ | Q9: ０－２
A10: 4 | B10: =V10 -> 城南A | C10: × | D10: ○ | E10: ○ | H10: ○ | I10: ○ | J10: ○ | K10: ○ | L10: × | M10: × | N10: × | O10: ○ | P10: ○ | Q10: ○ | R10: =W10&" - "&X10&" - "&Y10 -> 9 - 4 - 0 | S10: =Z10 -> 31 | T10: =ROUND(AB10,2) -> 2.38 | U10: 5 | V10: 城南A | W10: =COUNTIF(C10:Q10,"○") -> 9 | X10: =COUNTIF(C10:Q10,"×") -> 4 | Y10: =COUNTIF(C10:Q10,"△") -> 0 | Z10: =W10*3+X10*1+Y10*2 -> 31 | AA10: =SUM(W10:Y11) -> 13 | AB10: =Z10/AA10 -> 2.384615385
C11: ０－２ | D11: ２－１ | E11: ２－０ | H11: ２－０ | I11: ２－０ | J11: ２－１ | K11: ２－０ | L11: ０－２ | M11: ０－２ | N11: １－２ | O11: ２－０ | P11: ２－０ | Q11: ２－０
A12: 5 | B12: =V12 -> 城南B | C12: × | D12: × | E12: × | H12: × | I12: ○ | J12: × | K12: × | L12: × | M12: × | N12: × | O12: ○ | P12: × | Q12: ○ | R12: =W12&" - "&X12&" - "&Y12 -> 3 - 10 - 0 | S12: =Z12 -> 19 | T12: =ROUND(AB12,2) -> 1.46 | U12: 12 | V12: 城南B | W12: =COUNTIF(C12:Q12,"○") -> 3 | X12: =COUNTIF(C12:Q12,"×") -> 10 | Y12: =COUNTIF(C12:Q12,"△") -> 0 | Z12: =W12*3+X12*1+Y12*2 -> 19 | AA12: =SUM(W12:Y13) -> 13 | AB12: =Z12/AA12 -> 1.461538462
C13: ０－２ | D13: ０－２ | E13: ０－２ | H13: ０－２ | I13: ２－０ | J13: ０－２ | K13: ０－２ | L13: ０－２ | M13: ０－２ | N13: ０－２ | O13: ２－０ | P13: ０－２ | Q13: ２－０
A14: 6 | B14: =V14 -> 徳島商業A | C14: × | D14: × | E14: × | F14: × | G14: ○ | J14: × | K14: × | L14: × | M14: × | N14: × | O14: ○ | P14: × | Q14: ○ | R14: =W14&" - "&X14&" - "&Y14 -> 3 - 10 - 0 | S14: =Z14 -> 19 | T14: =ROUND(AB14,2) -> 1.46 | U14: =RANK(AB14,AB$4:AB$33) -> 11 | V14: 徳島商業A | W14: =COUNTIF(C14:Q14,"○") -> 3 | X14: =COUNTIF(C14:Q14,"×") -> 10 | Y14: =COUNTIF(C14:Q14,"△") -> 0 | Z14: =W14*3+X14*1+Y14*2 -> 19 | AA14: =SUM(W14:Y15) -> 13 | AB14: =Z14/AA14 -> 1.461538462
C15: ０－２ | D15: ０－２ | E15: ０－２ | F15: ０－２ | G15: ２－０ | J15: ０－２ | K15: ０－２ | L15: ０－２ | M15: ０－２ | N15: １－２ | O15: ２－０ | P15: ０－２ | Q15: １－０
A16: 7 | B16: =V16 -> 徳島商業B | C16: × | D16: × | E16: × | F16: × | G16: × | J16: × | K16: × | L16: × | M16: × | N16: × | O16: × | P16: × | Q16: × | R16: =W16&" - "&X16&" - "&Y16 -> 0 - 13 - 0 | S16: =Z16 -> 13 | T16: =ROUND(AB16,2) -> 1 | U16: =RANK(AB16,AB$4:AB$33) -> 15 | V16: 徳島商業B | W16: =COUNTIF(C16:Q16,"○") -> 0 | X16: =COUNTIF(C16:Q16,"×") -> 13 | Y16: =COUNTIF(C16:Q16,"△") -> 0 | Z16: =W16*3+X16*1+Y16*2 -> 13 | AA16: =SUM(W16:Y17) -> 13 | AB16: =Z16/AA16 -> 1
C17: ０－２ | D17: ０－２ | E17: ０－２ | F17: ０－２ | G17: ０－２ | J17: ０－２ | K17: ０－２ | L17: ０－２ | M17: ０－２ | N17: ０－２ | O17: ０－２ | P17: ０－２ | Q17: ０－２
A18: 8 | B18: =V18 -> 高松商業A | C18: △ | D18: ○ | E18: ○ | F18: × | G18: ○ | H18: ○ | I18: ○ | K18: × | L18: × | M18: ○ | N18: ○ | O18: ○ | P18: × | Q18: ○ | R18: =W18&" - "&X18&" - "&Y18 -> 9 - 4 - 1 | S18: =Z18 -> 33 | T18: =ROUND(AB18,2) -> 2.36 | U18: =RANK(AB18,AB$4:AB$33) -> 6 | V18: 高松商業A | W18: =COUNTIF(C18:Q18,"○") -> 9 | X18: =COUNTIF(C18:Q18,"×") -> 4 | Y18: =COUNTIF(C18:Q18,"△") -> 1 | Z18: =W18*3+X18*1+Y18*2 -> 33 | AA18: =SUM(W18:Y19) -> 14 | AB18: =Z18/AA18 -> 2.357142857
C19: １－１ | D19: ２－０ | E19: ２－０ | F19: １－２ | G19: ２－０ | H19: ２－０ | I19: ２－０ | K19: ０－２ | L19: ０－２ | M19: ２－０ | N19: ２－０ | O19: ２－０ | P19: ０－２ | Q19: ２－０
A20: 9 | B20: =V20 -> 愛媛選抜 | C20: ○ | D20: ○ | E20: ○ | F20: × | G20: ○ | H20: ○ | I20: ○ | J20: ○ | L20: × | M20: × | N20: ○ | O20: ○ | P20: ○ | Q20: ○ | R20: =W20&" - "&X20&" - "&Y20 -> 11 - 3 - 0 | S20: =Z20 -> 36 | T20: =ROUND(AB20,2) -> 2.57 | U20: =RANK(AB20,AB$4:AB$33) -> 2 | V20: 愛媛選抜 | W20: =COUNTIF(C20:Q20,"○") -> 11 | X20: =COUNTIF(C20:Q20,"×") -> 3 | Y20: =COUNTIF(C20:Q20,"△") -> 0 | Z20: =W20*3+X20*1+Y20*2 -> 36 | AA20: =SUM(W20:Y21) -> 14 | AB20: =Z20/AA20 -> 2.571428571
C21: ２－１ | D21: ２－０ | E21: ２－０ | F21: ０－２ | G21: ２－０ | H21: ２－０ | I21: ２－０ | J21: ２－０ | L21: ０－２ | M21: ０－２ | N21: ２－１ | O21: ２－０ | P21: ２－０ | Q21: ２－０
A22: 10 | B22: =V22 -> 松山商業A | C22: ○ | D22: ○ | F22: ○ | G22: ○ | H22: ○ | I22: ○ | J22: ○ | K22: ○ | N22: ○ | O22: ○ | P22: ○ | Q22: ○ | R22: =W22&" - "&X22&" - "&Y22 -> 12 - 0 - 0 | S22: =Z22 -> 36 | T22: =ROUND(AB22,2) -> 3 | U22: =RANK(AB22,AB$4:AB$33) -> 1 | V22: 松山商業A | W22: =COUNTIF(C22:Q22,"○") -> 12 | X22: =COUNTIF(C22:Q22,"×") -> 0 | Y22: =COUNTIF(C22:Q22,"△") -> 0 | Z22: =W22*3+X22*1+Y22*2 -> 36 | AA22: =SUM(W22:Y23) -> 12 | AB22: =Z22/AA22 -> 3
C23: ２－１ | D23: ２－０ | F23: ２－０ | G23: ２－０ | H23: ２－０ | I23: ２－０ | J23: ２－０ | K23: ２－０ | N23: ２－１ | O23: ２－０ | P23: ２－１ | Q23: ２－０
A24: 11 | B24: =V24 -> 松山商業B | C24: × | D24: × | E24: ○ | F24: ○ | G24: ○ | H24: ○ | I24: ○ | J24: × | K24: ○ | N24: ○ | O24: ○ | P24: × | Q24: ○ | R24: =W24&" - "&X24&" - "&Y24 -> 9 - 4 - 0 | S24: =Z24 -> 31 | T24: =ROUND(AB24,2) -> 2.38 | U24: =RANK(AB24,AB$4:AB$33) -> 4 | V24: 松山商業B | W24: =COUNTIF(C24:Q24,"○") -> 9 | X24: =COUNTIF(C24:Q24,"×") -> 4 | Y24: =COUNTIF(C24:Q24,"△") -> 0 | Z24: =W24*3+X24*1+Y24*2 -> 31 | AA24: =SUM(W24:Y25) -> 13 | AB24: =Z24/AA24 -> 2.384615385
C25: ０－２ | D25: ０－２ | E25: ２－１ | F25: ２－０ | G25: ２－０ | H25: ２－０ | I25: ２－０ | J25: ０－２ | K25: ２－０ | N25: ２－１ | O25: ２－０ | P25: ０－２ | Q25: ２－１
A26: 12 | B26: =V26 -> 松山東A | C26: × | D26: ○ | E26: ○ | F26: ○ | G26: ○ | H26: ○ | I26: ○ | J26: × | K26: × | L26: × | M26: × | P26: △ | Q26: ○ | R26: =W26&" - "&X26&" - "&Y26 -> 7 - 5 - 1 | S26: =Z26 -> 28 | T26: =ROUND(AB26,2) -> 2.15 | U26: =RANK(AB26,AB$4:AB$33) -> 8 | V26: 松山東A | W26: =COUNTIF(C26:Q26,"○") -> 7 | X26: =COUNTIF(C26:Q26,"×") -> 5 | Y26: =COUNTIF(C26:Q26,"△") -> 1 | Z26: =W26*3+X26*1+Y26*2 -> 28 | AA26: =SUM(W26:Y27) -> 13 | AB26: =Z26/AA26 -> 2.153846154
C27: ０－２ | D27: ２－０ | E27: ２－０ | F27: ２－１ | G27: ２－０ | H27: ２－１ | I27: ２－０ | J27: ０－２ | K27: １－２ | L27: １－２ | M27: １－２ | P27: １－１ | Q27: ２－０
A28: 13 | B28: =V28 -> 松山東B | C28: × | D28: × | E28: × | F28: × | G28: × | H28: × | I28: ○ | J28: × | K28: × | L28: × | M28: × | P28: × | Q28: × | R28: =W28&" - "&X28&" - "&Y28 -> 1 - 12 - 0 | S28: =Z28 -> 15 | T28: =ROUND(AB28,2) -> 1.15 | U28: =RANK(AB28,AB$4:AB$33) -> 14 | V28: 松山東B | W28: =COUNTIF(C28:Q28,"○") -> 1 | X28: =COUNTIF(C28:Q28,"×") -> 12 | Y28: =COUNTIF(C28:Q28,"△") -> 0 | Z28: =W28*3+X28*1+Y28*2 -> 15 | AA28: =SUM(W28:Y29) -> 13 | AB28: =Z28/AA28 -> 1.153846154
C29: ０－２ | D29: ０－２ | E29: ０－２ | F29: ０－２ | G29: ０－２ | H29: ０－２ | I29: ２－０ | J29: ０－２ | K29: ０－２ | L29: ０－２ | M29: ０－２ | P29: ０－２ | Q29: ０－２
A30: 14 | B30: =V30 -> 松山北A | C30: × | D30: ○ | E30: ○ | F30: × | G30: ○ | H30: ○ | I30: ○ | J30: ○ | K30: × | L30: × | M30: ○ | N30: △ | O30: ○ | R30: =W30&" - "&X30&" - "&Y30 -> 8 - 4 - 1 | S30: =Z30 -> 30 | T30: =ROUND(AB30,2) -> 2.31 | U30: =RANK(AB30,AB$4:AB$33) -> 7 | V30: 松山北A | W30: =COUNTIF(C30:Q30,"○") -> 8 | X30: =COUNTIF(C30:Q30,"×") -> 4 | Y30: =COUNTIF(C30:Q30,"△") -> 1 | Z30: =W30*3+X30*1+Y30*2 -> 30 | AA30: =SUM(W30:Y31) -> 13 | AB30: =Z30/AA30 -> 2.307692308
C31: １－２ | D31: ２－１ | E31: ２－０ | F31: ０－２ | G31: ２－０ | H31: ２－０ | I31: ２－０ | J31: ２－０ | K31: ０－２ | L31: １－２ | M31: ２－０ | N31: １－１ | O31: ２－０
A32: 15 | B32: =V32 -> 松山北B | C32: × | D32: × | E32: ○ | F32: × | G32: × | H32: × | I32: ○ | J32: × | K32: × | L32: × | M32: × | N32: × | O32: ○ | R32: =W32&" - "&X32&" - "&Y32 -> 3 - 10 - 0 | S32: =Z32 -> 19 | T32: =ROUND(AB32,2) -> 1.46 | U32: 13 | V32: 松山北B | W32: =COUNTIF(C32:Q32,"○") -> 3 | X32: =COUNTIF(C32:Q32,"×") -> 10 | Y32: =COUNTIF(C32:Q32,"△") -> 0 | Z32: =W32*3+X32*1+Y32*2 -> 19 | AA32: =SUM(W32:Y33) -> 13 | AB32: =Z32/AA32 -> 1.461538462
C33: ０－２ | D33: ０－２ | E33: ２－０ | F33: ０－２ | G33: ０－２ | H33: ０－１ | I33: ２－０ | J33: ０－２ | K33: ０－２ | L33: ０－２ | M33: １－２ | N33: ０－２ | O33: ２－０
C35: ※ | D35: ポイントは「勝→３点、分→２点、負→１点、棄権→０点」で計算。得点率は「ポイント÷試合数」で計算。
C36: ※ | D36: 松山商業Bと城南Aは同率のため、直接対決の結果で順位を決定。
C37: ※ | D37: 徳島商業A、城南B、松山北Bは同率のため、直接対決の結果で順位を決定。

Sheet 男子一般(予選A)
A1: 男子一般リーグA
C3: =B4 -> 高松工芸A | D3: =B6 -> 高松工芸D | E3: =B8 -> 高松商業B | F3: =B10 -> 富岡西 | G3: =B12 -> 和歌山商業D | H3: =B14 -> 松山商業D | I3: =B16 -> 松山北C | J3: =B18 -> 松山東C | K3: =B20 -> 今治北B | L3: =B22 -> 今治北C | M3: =B24 -> 伊予農業A | N3: =B26 -> 三崎A | O3: =B28 -> 東温B | P3: =B30 -> 東温C | Q3: 勝敗分 | R3: ポイント | S3: 得点率 | T3: 順位 | U3: チーム名 | V3: 勝 | W3: 負 | X3: 分 | Y3: ポイント | Z3: 試合数 | AA3: 勝率
A4: 1 | B4: =U4 -> 高松工芸A | E4: ○ | F4: ○ | G4: ○ | H4: ○ | I4: ○ | J4: ○ | K4: ○ | L4: ○ | M4: × | N4: ○ | O4: ○ | P4: ○ | Q4: =V4&" - "&W4&" - "&X4 -> 11 - 1 - 0 | R4: =Y4 -> 34 | S4: =ROUND(AA4,2) -> 2.83 | T4: =RANK(AA4,AA$4:AA$31) -> 2 | U4: 高松工芸A | V4: =COUNTIF(C4:P4,"○") -> 11 | W4: =COUNTIF(C4:P4,"×") -> 1 | X4: =COUNTIF(C4:P4,"△") -> 0 | Y4: =V4*3+W4*1+X4*2 -> 34 | Z4: =SUM(V4:X5) -> 12 | AA4: =Y4/Z4 -> 2.833333333
E5: ２－１ | F5: ２－１ | G5: ２－０ | H5: ２－０ | I5: ２－０ | J5: ２－０ | K5: ２－１ | L5: ２－０ | M5: ０－２ | N5: ２－０ | O5: ２－０ | P5: ２－０
A6: 2 | B6: =U6 -> 高松工芸D | E6: × | F6: × | H6: × | I6: × | J6: × | K6: × | L6: × | M6: × | N6: ○ | O6: × | P6: ○ | Q6: =V6&" - "&W6&" - "&X6 -> 2 - 9 - 0 | R6: =Y6 -> 15 | S6: =ROUND(AA6,2) -> 1.36 | T6: =RANK(AA6,AA$4:AA$31) -> 12 | U6: 高松工芸D | V6: =COUNTIF(C6:P6,"○") -> 2 | W6: =COUNTIF(C6:P6,"×") -> 9 | X6: =COUNTIF(C6:P6,"△") -> 0 | Y6: =V6*3+W6*1+X6*2 -> 15 | Z6: =SUM(V6:X7) -> 11 | AA6: =Y6/Z6 -> 1.363636364
E7: １－２ | F7: １－２ | H7: １－２ | I7: ０－２ | J7: １－２ | K7: １－２ | L7: ０－２ | M7: ０－２ | N7: ２－１ | O7: ０－２ | P7: ２－０
A8: 3 | B8: =U8 -> 高松商業B | C8: × | D8: ○ | F8: × | G8: ○ | H8: × | I8: × | J8: ○ | K8: ○ | L8: × | M8: × | N8: × | O8: × | P8: ○ | Q8: =V8&" - "&W8&" - "&X8 -> 5 - 8 - 0 | R8: =Y8 -> 23 | S8: =ROUND(AA8,2) -> 1.77 | T8: =RANK(AA8,AA$4:AA$31) -> 9 | U8: 高松商業B | V8: =COUNTIF(C8:P8,"○") -> 5 | W8: =COUNTIF(C8:P8,"×") -> 8 | X8: =COUNTIF(C8:P8,"△") -> 0 | Y8: =V8*3+W8*1+X8*2 -> 23 | Z8: =SUM(V8:X9) -> 13 | AA8: =Y8/Z8 -> 1.769230769
C9: １－２ | D9: ２－１ | F9: ０－２ | G9: ２－０ | H9: ０－２ | I9: ０－２ | J9: ２－１ | K9: ２－０ | L9: ０－２ | M9: ０－２ | N9: ０－２ | O9: １－２ | P9: ２－０
A10: 4 | B10: =U10 -> 富岡西 | C10: × | D10: ○ | E10: ○ | G10: ○ | H10: × | I10: × | J10: △ | K10: × | L10: × | M10: × | N10: × | O10: × | P10: ○ | Q10: =V10&" - "&W10&" - "&X10 -> 4 - 8 - 1 | R10: =Y10 -> 22 | S10: =ROUND(AA10,2) -> 1.69 | T10: =RANK(AA10,AA$4:AA$31) -> 10 | U10: 富岡西 | V10: =COUNTIF(C10:P10,"○") -> 4 | W10: =COUNTIF(C10:P10,"×") -> 8 | X10: =COUNTIF(C10:P10,"△") -> 1 | Y10: =V10*3+W10*1+X10*2 -> 22 | Z10: =SUM(V10:X11) -> 13 | AA10: =Y10/Z10 -> 1.692307692
C11: １－２ | D11: ２－１ | E11: ２－０ | G11: ２－０ | H11: ０－２ | I11: ０－２ | J11: １－１ | K11: ０－２ | L11: １－２ | M11: ０－２ | N11: ０－２ | O11: １－２ | P11: ２－０
A12: 5 | B12: =U12 -> 和歌山商業D | C12: × | E12: × | F12: × | H12: × | I12: × | J12: × | K12: × | L12: × | M12: × | N12: × | O12: × | P12: × | Q12: =V12&" - "&W12&" - "&X12 -> 0 - 12 - 0 | R12: =Y12 -> 12 | S12: =ROUND(AA12,2) -> 1 | T12: =RANK(AA12,AA$4:AA$31) -> 14 | U12: 和歌山商業D | V12: =COUNTIF(C12:P12,"○") -> 0 | W12: =COUNTIF(C12:P12,"×") -> 12 | X12: =COUNTIF(C12:P12,"△") -> 0 | Y12: =V12*3+W12*1+X12*2 -> 12 | Z12: =SUM(V12:X13) -> 12 | AA12: =Y12/Z12 -> 1
C13: ０－２ | E13: ０－２ | F13: ０－２ | H13: ０－２ | I13: ０－２ | J13: １－２ | K13: ０－２ | L13: ０－２ | M13: ０－２ | N13: ０－２ | O13: ０－２ | P13: ０－２
A14: 6 | B14: =U14 -> 松山商業D | C14: × | D14: ○ | E14: ○ | F14: ○ | G14: ○ | I14: × | J14: ○ | K14: ○ | L14: × | M14: × | N14: × | O14: × | P14: ○ | Q14: =V14&" - "&W14&" - "&X14 -> 7 - 6 - 0 | R14: =Y14 -> 27 | S14: =ROUND(AA14,2) -> 2.08 | T14: =RANK(AA14,AA$4:AA$31) -> 8 | U14: 松山商業D | V14: =COUNTIF(C14:P14,"○") -> 7 | W14: =COUNTIF(C14:P14,"×") -> 6 | X14: =COUNTIF(C14:P14,"△") -> 0 | Y14: =V14*3+W14*1+X14*2 -> 27 | Z14: =SUM(V14:X15) -> 13 | AA14: =Y14/Z14 -> 2.076923077
C15: ０－２ | D15: ２－１ | E15: ２－０ | F15: ２－０ | G15: ２－０ | I15: １－２ | J15: ２－０ | K15: ２－０ | L15: ０－２ | M15: ０－２ | N15: １－２ | O15: １－２ | P15: ２－０
A16: 7 | B16: =U16 -> 松山北C | C16: × | D16: ○ | E16: ○ | F16: ○ | G16: ○ | H16: ○ | J16: ○ | K16: × | L16: × | M16: × | N16: × | O16: ○ | P16: ○ | Q16: =V16&" - "&W16&" - "&X16 -> 8 - 5 - 0 | R16: =Y16 -> 29 | S16: =ROUND(AA16,2) -> 2.23 | T16: 6 | U16: 松山北C | V16: =COUNTIF(C16:P16,"○") -> 8 | W16: =COUNTIF(C16:P16,"×") -> 5 | X16: =COUNTIF(C16:P16,"△") -> 0 | Y16: =V16*3+W16*1+X16*2 -> 29 | Z16: =SUM(V16:X17) -> 13 | AA16: =Y16/Z16 -> 2.230769231
C17: ０－２ | D17: ２－０ | E17: ２－０ | F17: ２－０ | G17: ２－０ | H17: ２－１ | J17: ２－０ | K17: １－２ | L17: ０－２ | M17: ０－２ | N17: ０－２ | O17: ２－０ | P17: ２－０
A18: 8 | B18: =U18 -> 松山東C | C18: × | D18: ○ | E18: × | F18: △ | G18: ○ | H18: × | I18: × | K18: × | L18: × | M18: × | N18: × | O18: × | P18: ○ | Q18: =V18&" - "&W18&" - "&X18 -> 3 - 9 - 1 | R18: =Y18 -> 20 | S18: =ROUND(AA18,2) -> 1.54 | T18: =RANK(AA18,AA$4:AA$31) -> 11 | U18: 松山東C | V18: =COUNTIF(C18:P18,"○") -> 3 | W18: =COUNTIF(C18:P18,"×") -> 9 | X18: =COUNTIF(C18:P18,"△") -> 1 | Y18: =V18*3+W18*1+X18*2 -> 20 | Z18: =SUM(V18:X19) -> 13 | AA18: =Y18/Z18 -> 1.538461538
C19: ０－２ | D19: ２－１ | E19: １－２ | F19: １－１ | G19: ２－１ | H19: ０－２ | I19: ０－２ | K19: １－２ | L19: ０－２ | M19: ０－２ | N19: １－２ | O19: １－２ | P19: ２－０
A20: 9 | B20: =U20 -> 今治北B | C20: × | D20: ○ | E20: × | F20: ○ | G20: ○ | H20: × | I20: ○ | J20: ○ | M20: × | N20: ○ | O20: ○ | P20: ○ | Q20: =V20&" - "&W20&" - "&X20 -> 8 - 4 - 0 | R20: =Y20 -> 28 | S20: =ROUND(AA20,2) -> 2.33 | T20: =RANK(AA20,AA$4:AA$31) -> 4 | U20: 今治北B | V20: =COUNTIF(C20:P20,"○") -> 8 | W20: =COUNTIF(C20:P20,"×") -> 4 | X20: =COUNTIF(C20:P20,"△") -> 0 | Y20: =V20*3+W20*1+X20*2 -> 28 | Z20: =SUM(V20:X21) -> 12 | AA20: =Y20/Z20 -> 2.333333333
C21: １－２ | D21: ２－１ | E21: ０－２ | F21: ２－０ | G21: ２－０ | H21: ０－２ | I21: ２－１ | J21: ２－１ | M21: ０－２ | N21: ２－１ | O21: ２－０ | P21: ２－０
A22: 10 | B22: =U22 -> 今治北C | C22: × | D22: ○ | E22: ○ | F22: ○ | G22: ○ | H22: ○ | I22: ○ | J22: ○ | M22: × | N22: × | O22: ○ | P22: ○ | Q22: =V22&" - "&W22&" - "&X22 -> 9 - 3 - 0 | R22: =Y22 -> 30 | S22: =ROUND(AA22,2) -> 2.5 | T22: =RANK(AA22,AA$4:AA$31) -> 3 | U22: 今治北C | V22: =COUNTIF(C22:P22,"○") -> 9 | W22: =COUNTIF(C22:P22,"×") -> 3 | X22: =COUNTIF(C22:P22,"△") -> 0 | Y22: =V22*3+W22*1+X22*2 -> 30 | Z22: =SUM(V22:X23) -> 12 | AA22: =Y22/Z22 -> 2.5
C23: ０－２ | D23: ２－０ | E23: ２－０ | F23: ２－１ | G23: ２－０ | H23: ２－０ | I23: ２－０ | J23: ２－０ | M23: ０－２ | N23: １－２ | O23: ２－０ | P23: ２－１
A24: 11 | B24: =U24 -> 伊予農業A | C24: ○ | D24: ○ | E24: ○ | F24: ○ | G24: ○ | H24: ○ | I24: ○ | J24: ○ | K24: ○ | L24: ○ | N24: ○ | O24: ○ | P24: ○ | Q24: =V24&" - "&W24&" - "&X24 -> 13 - 0 - 0 | R24: =Y24 -> 39 | S24: =ROUND(AA24,2) -> 3 | T24: =RANK(AA24,AA$4:AA$31) -> 1 | U24: 伊予農業A | V24: =COUNTIF(C24:P24,"○") -> 13 | W24: =COUNTIF(C24:P24,"×") -> 0 | X24: =COUNTIF(C24:P24,"△") -> 0 | Y24: =V24*3+W24*1+X24*2 -> 39 | Z24: =SUM(V24:X25) -> 13 | AA24: =Y24/Z24 -> 3
C25: ２－０ | D25: ２－０ | E25: ２－０ | F25: ２－０ | G25: ２－０ | H25: ２－０ | I25: ２－０ | J25: ２－０ | K25: ２－０ | L25: ２－０ | N25: ２－０ | O25: ２－０ | P25: ２－０
A26: 12 | B26: =U26 -> 三崎A | C26: × | D26: × | E26: ○ | F26: ○ | G26: ○ | H26: ○ | I26: ○ | J26: ○ | K26: × | L26: ○ | M26: × | O26: × | P26: ○ | Q26: =V26&" - "&W26&" - "&X26 -> 8 - 5 - 0 | R26: =Y26 -> 29 | S26: =ROUND(AA26,2) -> 2.23 | T26: =RANK(AA26,AA$4:AA$31) -> 5 | U26: 三崎A | V26: =COUNTIF(C26:P26,"○") -> 8 | W26: =COUNTIF(C26:P26,"×") -> 5 | X26: =COUNTIF(C26:P26,"△") -> 0 | Y26: =V26*3+W26*1+X26*2 -> 29 | Z26: =SUM(V26:X27) -> 13 | AA26: =Y26/Z26 -> 2.230769231
C27: ０－２ | D27: １－２ | E27: ２－０ | F27: ２－０ | G27: ２－０ | H27: ２－１ | I27: ２－０ | J27: ２－１ | K27: １－２ | L27: ２－１ | M27: ０－２ | O27: ０－２ | P27: ２－０
A28: 13 | B28: =U28 -> 東温B | C28: × | D28: ○ | E28: ○ | F28: ○ | G28: ○ | H28: ○ | I28: × | J28: ○ | K28: × | L28: × | M28: × | N28: ○ | Q28: =V28&" - "&W28&" - "&X28 -> 7 - 5 - 0 | R28: =Y28 -> 26 | S28: =ROUND(AA28,2) -> 2.17 | T28: =RANK(AA28,AA$4:AA$31) -> 7 | U28: 東温B | V28: =COUNTIF(C28:P28,"○") -> 7 | W28: =COUNTIF(C28:P28,"×") -> 5 | X28: =COUNTIF(C28:P28,"△") -> 0 | Y28: =V28*3+W28*1+X28*2 -> 26 | Z28: =SUM(V28:X29) -> 12 | AA28: =Y28/Z28 -> 2.166666667
C29: ０－２ | D29: ２－０ | E29: ２－１ | F29: ２－１ | G29: ２－０ | H29: ２－１ | I29: ０－２ | J29: ２－１ | K29: ０－２ | L29: ０－２ | M29: ０－２ | N29: ２－０
A30: 14 | B30: =U30 -> 東温C | C30: × | D30: × | E30: × | F30: × | G30: ○ | H30: × | I30: × | J30: × | K30: × | L30: × | M30: × | N30: × | Q30: =V30&" - "&W30&" - "&X30 -> 1 - 11 - 0 | R30: =Y30 -> 14 | S30: =ROUND(AA30,2) -> 1.17 | T30: =RANK(AA30,AA$4:AA$31) -> 13 | U30: 東温C | V30: =COUNTIF(C30:P30,"○") -> 1 | W30: =COUNTIF(C30:P30,"×") -> 11 | X30: =COUNTIF(C30:P30,"△") -> 0 | Y30: =V30*3+W30*1+X30*2 -> 14 | Z30: =SUM(V30:X31) -> 12 | AA30: =Y30/Z30 -> 1.166666667
C31: ０－２ | D31: ０－２ | E31: ０－２ | F31: ０－２ | G31: ２－０ | H31: ０－２ | I31: ０－２ | J31: ０－２ | K31: ０－２ | L31: １－２ | M31: ０－２ | N31: ０－２
C33: ※ | D33: ポイントは「勝→３点、分→２点、負→１点、棄権→０点」で計算。得点率は「ポイント÷試合数」で計算。
C34: ※ | D34: 三崎Aと松山北Cは同率のため、直接対決の結果により順位を決定。

Sheet 男子一般(予選B)
A1: 男子一般リーグB
C3: =B4 -> 高松工芸B | D3: =B6 -> 高松工芸C | E3: =B8 -> 城南C | F3: =B10 -> 和歌山商業C | G3: =B12 -> 松山商業C | H3: =B14 -> 松山北D | I3: =B16 -> 新居浜工業 | J3: =B18 -> 松山東D | K3: =B20 -> 今治北A | L3: =B22 -> 伊予農業B | M3: =B24 -> 伊予農業C | N3: =B26 -> 東温A | O3: =B28 -> 三崎B | P3: =B30 -> 三崎C | Q3: 勝敗分 | R3: ポイント | S3: 得点率 | T3: 順位 | U3: チーム名 | V3: 勝 | W3: 負 | X3: 分 | Y3: ポイント | Z3: 試合数 | AA3: 勝率
A4: 1 | B4: =U4 -> 高松工芸B | E4: × | F4: ○ | G4: × | H4: ○ | I4: × | J4: ○ | K4: × | L4: ○ | M4: ○ | N4: × | O4: ○ | P4: ○ | Q4: =V4&" - "&W4&" - "&X4 -> 7 - 5 - 0 | R4: =Y4 -> 26 | S4: =ROUND(AA4,2) -> 2.17 | T4: =RANK(AA4,AA$4:AA$31) -> 6 | U4: 高松工芸B | V4: =COUNTIF(C4:P4,"○") -> 7 | W4: =COUNTIF(C4:P4,"×") -> 5 | X4: =COUNTIF(C4:P4,"△") -> 0 | Y4: =V4*3+W4*1+X4*2 -> 26 | Z4: =SUM(V4:X5) -> 12 | AA4: =Y4/Z4 -> 2.166666667
E5: ０－２ | F5: ２－１ | G5: ０－２ | H5: ２－１ | I5: ０－２ | J5: ２－０ | K5: ０－２ | L5: ２－０ | M5: ２－０ | N5: １－２ | O5: ２－１ | P5: ２－０
A6: 2 | B6: =U6 -> 高松工芸C | E6: × | F6: × | G6: ○ | H6: ○ | I6: × | J6: ○ | K6: × | L6: ○ | M6: ○ | N6: × | O6: × | P6: × | Q6: =V6&" - "&W6&" - "&X6 -> 5 - 7 - 0 | R6: =Y6 -> 22 | S6: =ROUND(AA6,2) -> 1.83 | T6: =RANK(AA6,AA$4:AA$31) -> 9 | U6: 高松工芸C | V6: =COUNTIF(C6:P6,"○") -> 5 | W6: =COUNTIF(C6:P6,"×") -> 7 | X6: =COUNTIF(C6:P6,"△") -> 0 | Y6: =V6*3+W6*1+X6*2 -> 22 | Z6: =SUM(V6:X7) -> 12 | AA6: =Y6/Z6 -> 1.833333333
E7: ０－２ | F7: １－２ | G7: ２－０ | H7: ２－０ | I7: ０－２ | J7: ２－１ | K7: ０－２ | L7: ２－１ | M7: ２－０ | N7: １－２ | O7: ０－２ | P7: １－２
A8: 3 | B8: =U8 -> 城南C | C8: ○ | D8: ○ | F8: × | G8: × | H8: ○ | I8: × | J8: ○ | K8: × | L8: ○ | M8: ○ | N8: × | O8: × | P8: ○ | Q8: =V8&" - "&W8&" - "&X8 -> 7 - 6 - 0 | R8: =Y8 -> 27 | S8: =ROUND(AA8,2) -> 2.08 | T8: =RANK(AA8,AA$4:AA$31) -> 8 | U8: 城南C | V8: =COUNTIF(C8:P8,"○") -> 7 | W8: =COUNTIF(C8:P8,"×") -> 6 | X8: =COUNTIF(C8:P8,"△") -> 0 | Y8: =V8*3+W8*1+X8*2 -> 27 | Z8: =SUM(V8:X9) -> 13 | AA8: =Y8/Z8 -> 2.076923077
C9: ２－０ | D9: ２－０ | F9: １－２ | G9: １－２ | H9: ２－０ | I9: ０－２ | J9: ２－０ | K9: ０－２ | L9: ２－０ | M9: ２－０ | N9: １－２ | O9: １－２ | P9: ２－０
A10: 4 | B10: =U10 -> 和歌山商業C | C10: × | D10: ○ | E10: ○ | G10: × | H10: ○ | J10: ○ | K10: × | L10: ○ | M10: ○ | N10: × | O10: × | P10: ○ | Q10: =V10&" - "&W10&" - "&X10 -> 7 - 5 - 0 | R10: =Y10 -> 26 | S10: =ROUND(AA10,2) -> 2.17 | T10: 7 | U10: 和歌山商業C | V10: =COUNTIF(C10:P10,"○") -> 7 | W10: =COUNTIF(C10:P10,"×") -> 5 | X10: =COUNTIF(C10:P10,"△") -> 0 | Y10: =V10*3+W10*1+X10*2 -> 26 | Z10: =SUM(V10:X11) -> 12 | AA10: =Y10/Z10 -> 2.166666667
C11: １－２ | D11: ２－１ | E11: ２－１ | G11: １－２ | H11: ２－０ | J11: ２－０ | K11: ０－２ | L11: ２－０ | M11: ２－１ | N11: ０－２ | O11: １－２ | P11: ２－０
A12: 5 | B12: =U12 -> 松山商業C | C12: ○ | D12: × | E12: ○ | F12: ○ | H12: ○ | I12: △ | J12: ○ | K12: × | L12: ○ | M12: ○ | N12: × | O12: ○ | P12: ○ | Q12: =V12&" - "&W12&" - "&X12 -> 9 - 3 - 1 | R12: =Y12 -> 32 | S12: =ROUND(AA12,2) -> 2.46 | T12: =RANK(AA12,AA$4:AA$31) -> 4 | U12: 松山商業C | V12: =COUNTIF(C12:P12,"○") -> 9 | W12: =COUNTIF(C12:P12,"×") -> 3 | X12: =COUNTIF(C12:P12,"△") -> 1 | Y12: =V12*3+W12*1+X12*2 -> 32 | Z12: =SUM(V12:X13) -> 13 | AA12: =Y12/Z12 -> 2.461538462
C13: ２－０ | D13: ０－２ | E13: ２－１ | F13: ２－１ | H13: ２－１ | I13: １－１ | J13: ２－１ | K13: ０－２ | L13: ２－０ | M13: ２－０ | N13: １－２ | O13: ２－０ | P13: ２－０
A14: 6 | B14: =U14 -> 松山北D | C14: × | D14: × | E14: × | F14: × | G14: × | I14: × | J14: ○ | K14: × | L14: × | M14: ○ | N14: × | O14: × | P14: × | Q14: =V14&" - "&W14&" - "&X14 -> 2 - 11 - 0 | R14: =Y14 -> 17 | S14: =ROUND(AA14,2) -> 1.31 | T14: =RANK(AA14,AA$4:AA$31) -> 12 | U14: 松山北D | V14: =COUNTIF(C14:P14,"○") -> 2 | W14: =COUNTIF(C14:P14,"×") -> 11 | X14: =COUNTIF(C14:P14,"△") -> 0 | Y14: =V14*3+W14*1+X14*2 -> 17 | Z14: =SUM(V14:X15) -> 13 | AA14: =Y14/Z14 -> 1.307692308
C15: １－２ | D15: ０－２ | E15: ０－２ | F15: ０－２ | G15: １－２ | I15: ０－２ | J15: ２－１ | K15: ０－２ | L15: ０－２ | M15: ２－０ | N15: ０－２ | O15: ０－２ | P15: ０－２
A16: 7 | B16: =U16 -> 新居浜工業 | C16: ○ | D16: ○ | E16: ○ | G16: △ | H16: ○ | J16: ○ | K16: ○ | L16: ○ | M16: ○ | N16: ○ | O16: × | P16: ○ | Q16: 10 - 1 - 1 | R16: =Y16 -> 33 | S16: =ROUND(AA16,2) -> 2.75 | T16: =RANK(AA16,AA$4:AA$31) -> 2 | U16: 新居浜工業 | V16: =COUNTIF(C16:P16,"○") -> 10 | W16: =COUNTIF(C16:P16,"×") -> 1 | X16: =COUNTIF(C16:P16,"△") -> 1 | Y16: =V16*3+W16*1+X16*2 -> 33 | Z16: =SUM(V16:X17) -> 12 | AA16: =Y16/Z16 -> 2.75
C17: ２－０ | D17: ２－０ | E17: ２－０ | G17: １－１ | H17: ２－０ | J17: ２－０ | K17: ２－０ | L17: ２－０ | M17: ２－０ | N17: ２－０ | O17: １－２ | P17: ２－０
A18: 8 | B18: =U18 -> 松山東D | C18: × | D18: × | E18: × | F18: × | G18: × | H18: × | I18: × | K18: × | L18: × | M18: × | N18: × | O18: × | P18: ○ | Q18: =V18&" - "&W18&" - "&X18 -> 1 - 12 - 0 | R18: =Y18 -> 15 | S18: =ROUND(AA18,2) -> 1.15 | T18: =RANK(AA18,AA$4:AA$31) -> 14 | U18: 松山東D | V18: =COUNTIF(C18:P18,"○") -> 1 | W18: =COUNTIF(C18:P18,"×") -> 12 | X18: =COUNTIF(C18:P18,"△") -> 0 | Y18: =V18*3+W18*1+X18*2 -> 15 | Z18: =SUM(V18:X19) -> 13 | AA18: =Y18/Z18 -> 1.153846154
C19: ０－２ | D19: １－２ | E19: ０－２ | F19: ０－２ | G19: １－２ | H19: １－２ | I19: ０－２ | K19: ０－２ | L19: ０－２ | M19: ０－２ | N19: ０－２ | O19: ０－２ | P19: ２－０
A20: 9 | B20: =U20 -> 今治北A | C20: ○ | D20: ○ | E20: ○ | F20: ○ | G20: ○ | H20: ○ | I20: × | J20: ○ | L20: ○ | M20: ○ | N20: × | O20: ○ | P20: ○ | Q20: =V20&" - "&W20&" - "&X20 -> 11 - 2 - 0 | R20: =Y20 -> 35 | S20: =ROUND(AA20,2) -> 2.69 | T20: =RANK(AA20,AA$4:AA$31) -> 3 | U20: 今治北A | V20: =COUNTIF(C20:P20,"○") -> 11 | W20: =COUNTIF(C20:P20,"×") -> 2 | X20: =COUNTIF(C20:P20,"△") -> 0 | Y20: =V20*3+W20*1+X20*2 -> 35 | Z20: =SUM(V20:X21) -> 13 | AA20: =Y20/Z20 -> 2.692307692
C21: ２－０ | D21: ２－０ | E21: ２－０ | F21: ２－０ | G21: ２－０ | H21: ２－０ | I21: ０－２ | J21: ２－０ | L21: ２－０ | M21: ２－０ | N21: ０－２ | O21: ２－０ | P21: ２－１
A22: 10 | B22: =U22 -> 伊予農業B | C22: × | D22: × | E22: × | F22: × | G22: × | H22: ○ | I22: × | J22: ○ | K22: × | N22: × | O22: × | P22: × | Q22: =V22&" - "&W22&" - "&X22 -> 2 - 10 - 0 | R22: =Y22 -> 16 | S22: =ROUND(AA22,2) -> 1.33 | T22: =RANK(AA22,AA$4:AA$31) -> 11 | U22: 伊予農業B | V22: =COUNTIF(C22:P22,"○") -> 2 | W22: =COUNTIF(C22:P22,"×") -> 10 | X22: =COUNTIF(C22:P22,"△") -> 0 | Y22: =V22*3+W22*1+X22*2 -> 16 | Z22: =SUM(V22:X23) -> 12 | AA22: =Y22/Z22 -> 1.333333333
C23: ０－２ | D23: １－２ | E23: ０－２ | F23: ０－２ | G23: ０－２ | H23: ２－０ | I23: ０－２ | J23: ２－０ | K23: ０－２ | N23: ０－２ | O23: ０－２ | P23: １－２
A24: 11 | B24: =U24 -> 伊予農業C | C24: × | D24: × | E24: × | F24: × | G24: × | H24: × | I24: × | J24: ○ | K24: × | N24: × | O24: × | P24: × | Q24: =V24&" - "&W24&" - "&X24 -> 1 - 11 - 0 | R24: =Y24 -> 14 | S24: =ROUND(AA24,2) -> 1.17 | T24: =RANK(AA24,AA$4:AA$31) -> 13 | U24: 伊予農業C | V24: =COUNTIF(C24:P24,"○") -> 1 | W24: =COUNTIF(C24:P24,"×") -> 11 | X24: =COUNTIF(C24:P24,"△") -> 0 | Y24: =V24*3+W24*1+X24*2 -> 14 | Z24: =SUM(V24:X25) -> 12 | AA24: =Y24/Z24 -> 1.166666667
C25: ０－２ | D25: ０－２ | E25: ０－２ | F25: １－２ | G25: ０－２ | H25: ０－２ | I25: ０－２ | J25: ２－０ | K25: ０－２ | N25: ０－２ | O25: ０－２ | P25: ０－２
A26: 12 | B26: =U26 -> 東温A | C26: ○ | D26: ○ | E26: ○ | F26: ○ | G26: ○ | H26: ○ | I26: × | J26: ○ | K26: ○ | L26: ○ | M26: ○ | O26: ○ | P26: ○ | Q26: =V26&" - "&W26&" - "&X26 -> 12 - 1 - 0 | R26: =Y26 -> 37 | S26: =ROUND(AA26,2) -> 2.85 | T26: =RANK(AA26,AA$4:AA$31) -> 1 | U26: 東温A | V26: =COUNTIF(C26:P26,"○") -> 12 | W26: =COUNTIF(C26:P26,"×") -> 1 | X26: =COUNTIF(C26:P26,"△") -> 0 | Y26: =V26*3+W26*1+X26*2 -> 37 | Z26: =SUM(V26:X27) -> 13 | AA26: =Y26/Z26 -> 2.846153846
C27: ２－１ | D27: ２－１ | E27: ２－１ | F27: ２－０ | G27: ２－１ | H27: ２－０ | I27: ０－２ | J27: ２－０ | K27: ２－０ | L27: ２－０ | M27: ２－０ | O27: ２－１ | P27: ２－０
A28: 13 | B28: =U28 -> 三崎B | C28: × | D28: ○ | E28: ○ | F28: ○ | G28: × | H28: ○ | I28: ○ | J28: ○ | K28: × | L28: ○ | M28: ○ | N28: × | Q28: =V28&" - "&W28&" - "&X28 -> 8 - 4 - 0 | R28: =Y28 -> 28 | S28: =ROUND(AA28,2) -> 2.33 | T28: =RANK(AA28,AA$4:AA$31) -> 5 | U28: 三崎B | V28: =COUNTIF(C28:P28,"○") -> 8 | W28: =COUNTIF(C28:P28,"×") -> 4 | X28: =COUNTIF(C28:P28,"△") -> 0 | Y28: =V28*3+W28*1+X28*2 -> 28 | Z28: =SUM(V28:X29) -> 12 | AA28: =Y28/Z28 -> 2.333333333
C29: １－２ | D29: ２－０ | E29: ２－１ | F29: ２－１ | G29: ０－２ | H29: ２－０ | I29: ２－１ | J29: ２－０ | K29: ０－２ | L29: ２－０ | M29: ２－０ | N29: １－２
A30: 14 | B30: =U30 -> 三崎C | C30: × | D30: ○ | E30: × | F30: × | G30: × | H30: ○ | I30: × | J30: × | K30: × | L30: ○ | M30: ○ | N30: × | Q30: =V30&" - "&W30&" - "&X30 -> 4 - 8 - 0 | R30: =Y30 -> 20 | S30: =ROUND(AA30,2) -> 1.67 | T30: =RANK(AA30,AA$4:AA$31) -> 10 | U30: 三崎C | V30: =COUNTIF(C30:P30,"○") -> 4 | W30: =COUNTIF(C30:P30,"×") -> 8 | X30: =COUNTIF(C30:P30,"△") -> 0 | Y30: =V30*3+W30*1+X30*2 -> 20 | Z30: =SUM(V30:X31) -> 12 | AA30: =Y30/Z30 -> 1.666666667
C31: ０－２ | D31: ２－１ | E31: ０－２ | F31: ０－２ | G31: ０－２ | H31: ２－０ | I31: ０－２ | J31: ０－２ | K31: １－２ | L31: ２－１ | M31: ２－０ | N31: ０－２
C33: ※ | D33: ポイントは「勝→３点、分→２点、負→１点、棄権→０点」で計算。得点率は「ポイント÷試合数」で計算。
C34: ※ | D34: 高松工芸Bと和歌山商業Cは同率のため、直接対決の結果により順位を決定。

Sheet 男子一般(順位リーグ）
A1: 男子一般順位リーグ
U2: ※ 予選の結果を持ち越す。
B3: 1，２位リーグ | M3: ９，１０位リーグ
C4: =B5 -> 伊予農業A | D4: =B7 -> 高松工芸A | E4: =B9 -> 東温A | F4: =B11 -> 新居浜工業 | G4: 勝敗分 | H4: ポイント | I4: 得点率 | J4: 順位 | N4: =M5 -> 高松商業B | O4: =M7 -> 富岡西 | P4: =M9 -> 高松工芸C | Q4: =M11 -> 三崎C | R4: 勝敗分 | S4: ポイント | T4: 得点率 | U4: 順位 | W4: 勝 | X4: 負 | Y4: 分 | Z4: ポイント | AA4: 試合数 | AB4: 勝率 | AD4: 勝 | AE4: 負 | AF4: 分 | AG4: ポイント | AH4: 試合数 | AI4: 勝率
A5: 1 | B5: 伊予農業A | D5: ○ | E5: ○ | F5: ○ | G5: =W5&" - "&X5&" - "&Y5 -> 3 - 0 - 0 | H5: =Z5 -> 9 | I5: =ROUND(AB5,2) -> 3 | J5: =RANK(AB5,AB$5:AB$11) -> 1 | L5: 1 | M5: 高松商業B | O5: × | P5: × | Q5: × | R5: =AD5&" - "&AE5&" - "&AF5 -> 0 - 3 - 0 | S5: =AG5 -> 3 | T5: =ROUND(AI5,2) -> 1 | U5: =RANK(AI5,AI$5:AI$11) -> 4 | W5: =COUNTIF(C5:F5,"○") -> 3 | X5: =COUNTIF(C5:F5,"×") -> 0 | Y5: =COUNTIF(C5:F5,"△") -> 0 | Z5: =W5*3+X5*1+Y5*2 -> 9 | AA5: =SUM(W5:Y6) -> 3 | AB5: =Z5/AA5 -> 3 | AD5: =COUNTIF(N5:Q5,"○") -> 0 | AE5: =COUNTIF(N5:Q5,"×") -> 3 | AF5: =COUNTIF(N5:Q5,"△") -> 0 | AG5: =AD5*3+AE5*1+AF5*2 -> 3 | AH5: =SUM(AD5:AF6) -> 3 | AI5: =AG5/AH5 -> 1
D6: ２－０ | E6: ２－０ | F6: ２－１ | O6: ０－２ | P6: ０－２ | Q6: １－２
A7: 2 | B7: 高松工芸A | C7: × | E7: ○ | F7: ○ | G7: =W7&" - "&X7&" - "&Y7 -> 2 - 1 - 0 | H7: =Z7 -> 7 | I7: =ROUND(AB7,2) -> 2.33 | J7: =RANK(AB7,AB$5:AB$11) -> 2 | L7: 2 | M7: 富岡西 | N7: ○ | P7: ○ | Q7: ○ | R7: =AD7&" - "&AE7&" - "&AF7 -> 3 - 0 - 0 | S7: =AG7 -> 9 | T7: =ROUND(AI7,2) -> 3 | U7: =RANK(AI7,AI$5:AI$11) -> 1 | W7: =COUNTIF(C7:F7,"○") -> 2 | X7: =COUNTIF(C7:F7,"×") -> 1 | Y7: =COUNTIF(C7:F7,"△") -> 0 | Z7: =W7*3+X7*1+Y7*2 -> 7 | AA7: =SUM(W7:Y8) -> 3 | AB7: =Z7/AA7 -> 2.333333333 | AD7: =COUNTIF(N7:Q7,"○") -> 3 | AE7: =COUNTIF(N7:Q7,"×") -> 0 | AF7: =COUNTIF(N7:Q7,"△") -> 0 | AG7: =AD7*3+AE7*1+AF7*2 -> 9 | AH7: =SUM(AD7:AF8) -> 3 | AI7: =AG7/AH7 -> 3
C8: ０－２ | E8: ２－１ | F8: ２－０ | N8: ２－０ | P8: ２－０ | Q8: ２－０
A9: 3 | B9: 東温A | C9: × | D9: × | F9: × | G9: =W9&" - "&X9&" - "&Y9 -> 0 - 3 - 0 | H9: =Z9 -> 3 | I9: =ROUND(AB9,2) -> 1 | J9: =RANK(AB9,AB$5:AB$11) -> 4 | L9: 3 | M9: 高松工芸C | N9: ○ | O9: × | Q9: × | R9: =AD9&" - "&AE9&" - "&AF9 -> 1 - 2 - 0 | S9: =AG9 -> 5 | T9: =ROUND(AI9,2) -> 1.67 | U9: 3 | W9: =COUNTIF(C9:F9,"○") -> 0 | X9: =COUNTIF(C9:F9,"×") -> 3 | Y9: =COUNTIF(C9:F9,"△") -> 0 | Z9: =W9*3+X9*1+Y9*2 -> 3 | AA9: =SUM(W9:Y10) -> 3 | AB9: =Z9/AA9 -> 1 | AD9: =COUNTIF(N9:Q9,"○") -> 1 | AE9: =COUNTIF(N9:Q9,"×") -> 2 | AF9: =COUNTIF(N9:Q9,"△") -> 0 | AG9: =AD9*3+AE9*1+AF9*2 -> 5 | AH9: =SUM(AD9:AF10) -> 3 | AI9: =AG9/AH9 -> 1.666666667
C10: ０－２ | D10: １－２ | F10: ０－２ | N10: ２－０ | O10: ０－２ | Q10: １－２
A11: 4 | B11: 新居浜工業 | C11: × | D11: × | E11: ○ | G11: =W11&" - "&X11&" - "&Y11 -> 1 - 2 - 0 | H11: =Z11 -> 5 | I11: =ROUND(AB11,2) -> 1.67 | J11: =RANK(AB11,AB$5:AB$11) -> 3 | L11: 4 | M11: 三崎C | N11: ○ | O11: × | P11: ○ | R11: =AD11&" - "&AE11&" - "&AF11 -> 2 - 1 - 0 | S11: =AG11 -> 7 | T11: =ROUND(AI11,2) -> 2.33 | U11: =RANK(AI11,AI$5:AI$11) -> 2 | W11: =COUNTIF(C11:F11,"○") -> 1 | X11: =COUNTIF(C11:F11,"×") -> 2 | Y11: =COUNTIF(C11:F11,"△") -> 0 | Z11: =W11*3+X11*1+Y11*2 -> 5 | AA11: =SUM(W11:Y12) -> 3 | AB11: =Z11/AA11 -> 1.666666667 | AD11: =COUNTIF(N11:Q11,"○") -> 2 | AE11: =COUNTIF(N11:Q11,"×") -> 1 | AF11: =COUNTIF(N11:Q11,"△") -> 0 | AG11: =AD11*3+AE11*1+AF11*2 -> 7 | AH11: =SUM(AD11:AF12) -> 3 | AI11: =AG11/AH11 -> 2.333333333
C12: １－２ | D12: ０－２ | E12: ２－０ | N12: ２－１ | O12: ０－２ | P12: ２－１
B14: ３，４位リーグ | M14: １１，１２位リーグ
C15: =B16 -> 今治北C | D15: =B18 -> 今治北B | E15: =B20 -> 今治北A | F15: =B22 -> 松山商業C | G15: 勝敗分 | H15: ポイント | I15: 得点率 | J15: 順位 | N15: =M16 -> 松山東C | O15: =M18 -> 高松工芸D | P15: =M20 -> 伊予農業B | Q15: =M22 -> 松山北D | R15: 勝敗分 | S15: ポイント | T15: 得点率 | U15: 順位 | W15: 勝 | X15: 負 | Y15: 分 | Z15: ポイント | AA15: 試合数 | AB15: 勝率 | AD15: 勝 | AE15: 負 | AF15: 分 | AG15: ポイント | AH15: 試合数 | AI15: 勝率
A16: 1 | B16: 今治北C | E16: × | F16: × | G16: =W16&" - "&X16&" - "&Y16 -> 0 - 2 - 0 | H16: =Z16 -> 2 | I16: =ROUND(AB16,2) -> 1 | J16: =RANK(AB16,AB$16:AB$22) -> 4 | L16: 1 | M16: 松山東C | O16: ○ | P16: × | Q16: × | R16: =AD16&" - "&AE16&" - "&AF16 -> 1 - 2 - 0 | S16: =AG16 -> 5 | T16: =ROUND(AI16,2) -> 1.67 | U16: 4 | W16: =COUNTIF(C16:F16,"○") -> 0 | X16: =COUNTIF(C16:F16,"×") -> 2 | Y16: =COUNTIF(C16:F16,"△") -> 0 | Z16: =W16*3+X16*1+Y16*2 -> 2 | AA16: =SUM(W16:Y17) -> 2 | AB16: =Z16/AA16 -> 1 | AD16: =COUNTIF(N16:Q16,"○") -> 1 | AE16: =COUNTIF(N16:Q16,"×") -> 2 | AF16: =COUNTIF(N16:Q16,"△") -> 0 | AG16: =AD16*3+AE16*1+AF16*2 -> 5 | AH16: =SUM(AD16:AF17) -> 3 | AI16: =AG16/AH16 -> 1.666666667
E17: １－２ | F17: １－２ | O17: ２－１ | P17: ０－２ | Q17: ０－２
A18: 2 | B18: 今治北B | E18: × | F18: ○ | G18: =W18&" - "&X18&" - "&Y18 -> 1 - 1 - 0 | H18: =Z18 -> 4 | I18: =ROUND(AB18,2) -> 2 | J18: 2 | L18: 2 | M18: 高松工芸D | N18: × | P18: × | Q18: ○ | R18: =AD18&" - "&AE18&" - "&AF18 -> 1 - 2 - 0 | S18: =AG18 -> 5 | T18: =ROUND(AI18,2) -> 1.67 | U18: =RANK(AI18,AI$16:AI$22) -> 2 | W18: =COUNTIF(C18:F18,"○") -> 1 | X18: =COUNTIF(C18:F18,"×") -> 1 | Y18: =COUNTIF(C18:F18,"△") -> 0 | Z18: =W18*3+X18*1+Y18*2 -> 4 | AA18: =SUM(W18:Y19) -> 2 | AB18: =Z18/AA18 -> 2 | AD18: =COUNTIF(N18:Q18,"○") -> 1 | AE18: =COUNTIF(N18:Q18,"×") -> 2 | AF18: =COUNTIF(N18:Q18,"△") -> 0 | AG18: =AD18*3+AE18*1+AF18*2 -> 5 | AH18: =SUM(AD18:AF19) -> 3 | AI18: =AG18/AH18 -> 1.666666667
E19: １－２ | F19: ２－１ | N19: １－２ | P19: ０－２ | Q19: ２－０
A20: 3 | B20: 今治北A | C20: ○ | D20: ○ | F20: ○ | G20: =W20&" - "&X20&" - "&Y20 -> 3 - 0 - 0 | H20: =Z20 -> 9 | I20: =ROUND(AB20,2) -> 3 | J20: =RANK(AB20,AB$16:AB$22) -> 1 | L20: 3 | M20: 伊予農業B | N20: ○ | O20: ○ | Q20: ○ | R20: =AD20&" - "&AE20&" - "&AF20 -> 3 - 0 - 0 | S20: =AG20 -> 9 | T20: =ROUND(AI20,2) -> 3 | U20: =RANK(AI20,AI$16:AI$22) -> 1 | W20: =COUNTIF(C20:F20,"○") -> 3 | X20: =COUNTIF(C20:F20,"×") -> 0 | Y20: =COUNTIF(C20:F20,"△") -> 0 | Z20: =W20*3+X20*1+Y20*2 -> 9 | AA20: =SUM(W20:Y21) -> 3 | AB20: =Z20/AA20 -> 3 | AD20: =COUNTIF(N20:Q20,"○") -> 3 | AE20: =COUNTIF(N20:Q20,"×") -> 0 | AF20: =COUNTIF(N20:Q20,"△") -> 0 | AG20: =AD20*3+AE20*1+AF20*2 -> 9 | AH20: =SUM(AD20:AF21) -> 3 | AI20: =AG20/AH20 -> 3
C21: ２－１ | D21: ２－１ | F21: ２－０ | N21: ２－０ | O21: ２－０ | Q21: ２－０
A22: 4 | B22: 松山商業C | C22: ○ | D22: × | E22: × | G22: =W22&" - "&X22&" - "&Y22 -> 1 - 2 - 0 | H22: =Z22 -> 5 | I22: =ROUND(AB22,2) -> 1.67 | J22: =RANK(AB22,AB$16:AB$22) -> 3 | L22: 4 | M22: 松山北D | N22: ○ | O22: × | P22: × | R22: =AD22&" - "&AE22&" - "&AF22 -> 1 - 2 - 0 | S22: =AG22 -> 5 | T22: =ROUND(AI22,2) -> 1.67 | U22: 3 | W22: =COUNTIF(C22:F22,"○") -> 1 | X22: =COUNTIF(C22:F22,"×") -> 2 | Y22: =COUNTIF(C22:F22,"△") -> 0 | Z22: =W22*3+X22*1+Y22*2 -> 5 | AA22: =SUM(W22:Y23) -> 3 | AB22: =Z22/AA22 -> 1.666666667 | AD22: =COUNTIF(N22:Q22,"○") -> 1 | AE22: =COUNTIF(N22:Q22,"×") -> 2 | AF22: =COUNTIF(N22:Q22,"△") -> 0 | AG22: =AD22*3+AE22*1+AF22*2 -> 5 | AH22: =SUM(AD22:AF23) -> 3 | AI22: =AG22/AH22 -> 1.666666667
C23: ２－１ | D23: １－２ | E23: ０－２ | N23: ２－０ | O23: ０－２ | P23: ０－２
M24: ※ | N24: 高松工芸D、松山北D、松山東Cは同率のため、直接対決の結果で順位を決定。
B25: ５，６位リーグ | M25: １３，１４位リーグ
C26: =B27 -> 三崎A | D26: =B29 -> 松山北C | E26: =B31 -> 三崎B | F26: =B33 -> 高松工芸B | G26: 勝敗分 | H26: ポイント | I26: 得点率 | J26: 順位 | N26: =M27 -> 東温C | O26: =M29 -> 和歌山商業D | P26: =M31 -> 伊予農業C | Q26: =M33 -> 松山東D | R26: 勝敗分 | S26: ポイント | T26: 得点率 | U26: 順位 | W26: 勝 | X26: 負 | Y26: 分 | Z26: ポイント | AA26: 試合数 | AB26: 勝率 | AD26: 勝 | AE26: 負 | AF26: 分 | AG26: ポイント | AH26: 試合数 | AI26: 勝率
A27: 1 | B27: 三崎A | D27: ○ | E27: × | F27: ○ | G27: =W27&" - "&X27&" - "&Y27 -> 2 - 1 - 0 | H27: =Z27 -> 7 | I27: =ROUND(AB27,2) -> 2.33 | J27: 2 | L27: 1 | M27: 東温C | O27: ○ | P27: × | Q27: ○ | R27: =AD27&" - "&AE27&" - "&AF27 -> 2 - 1 - 0 | S27: =AG27 -> 7 | T27: =ROUND(AI27,2) -> 2.33 | U27: =RANK(AI27,AI$27:AI$33) -> 2 | W27: =COUNTIF(C27:F27,"○") -> 2 | X27: =COUNTIF(C27:F27,"×") -> 1 | Y27: =COUNTIF(C27:F27,"△") -> 0 | Z27: =W27*3+X27*1+Y27*2 -> 7 | AA27: =SUM(W27:Y28) -> 3 | AB27: =Z27/AA27 -> 2.333333333 | AD27: =COUNTIF(N27:Q27,"○") -> 2 | AE27: =COUNTIF(N27:Q27,"×") -> 1 | AF27: =COUNTIF(N27:Q27,"△") -> 0 | AG27: =AD27*3+AE27*1+AF27*2 -> 7 | AH27: =SUM(AD27:AF28) -> 3 | AI27: =AG27/AH27 -> 2.333333333
D28: ２－０ | E28: ０－２ | F28: ２－１ | O28: ２－０ | P28: １－２ | Q28: ２－０
A29: 2 | B29: 松山北C | C29: × | E29: × | F29: ○ | G29: =W29&" - "&X29&" - "&Y29 -> 1 - 2 - 0 | H29: =Z29 -> 5 | I29: =ROUND(AB29,2) -> 1.67 | J29: =RANK(AB29,AB$27:AB$33) -> 3 | L29: 2 | M29: 和歌山商業D | N29: × | P29: × | Q29: ○ | R29: =AD29&" - "&AE29&" - "&AF29 -> 1 - 2 - 0 | S29: =AG29 -> 5 | T29: =ROUND(AI29,2) -> 1.67 | U29: =RANK(AI29,AI$27:AI$33) -> 3 | W29: =COUNTIF(C29:F29,"○") -> 1 | X29: =COUNTIF(C29:F29,"×") -> 2 | Y29: =COUNTIF(C29:F29,"△") -> 0 | Z29: =W29*3+X29*1+Y29*2 -> 5 | AA29: =SUM(W29:Y30) -> 3 | AB29: =Z29/AA29 -> 1.666666667 | AD29: =COUNTIF(N29:Q29,"○") -> 1 | AE29: =COUNTIF(N29:Q29,"×") -> 2 | AF29: =COUNTIF(N29:Q29,"△") -> 0 | AG29: =AD29*3+AE29*1+AF29*2 -> 5 | AH29: =SUM(AD29:AF30) -> 3 | AI29: =AG29/AH29 -> 1.666666667
C30: ０－２ | E30: １－２ | F30: ２－０ | N30: ０－２ | P30: ０－２ | Q30: ２－０
A31: 3 | B31: 三崎B | C31: ○ | D31: ○ | F31: × | G31: =W31&" - "&X31&" - "&Y31 -> 2 - 1 - 0 | H31: =Z31 -> 7 | I31: =ROUND(AB31,2) -> 2.33 | J31: =RANK(AB31,AB$27:AB$33) -> 1 | L31: 3 | M31: 伊予農業C | N31: ○ | O31: ○ | Q31: ○ | R31: =AD31&" - "&AE31&" - "&AF31 -> 3 - 0 - 0 | S31: =AG31 -> 9 | T31: =ROUND(AI31,2) -> 3 | U31: =RANK(AI31,AI$27:AI$33) -> 1 | W31: =COUNTIF(C31:F31,"○") -> 2 | X31: =COUNTIF(C31:F31,"×") -> 1 | Y31: =COUNTIF(C31:F31,"△") -> 0 | Z31: =W31*3+X31*1+Y31*2 -> 7 | AA31: =SUM(W31:Y32) -> 3 | AB31: =Z31/AA31 -> 2.333333333 | AD31: =COUNTIF(N31:Q31,"○") -> 3 | AE31: =COUNTIF(N31:Q31,"×") -> 0 | AF31: =COUNTIF(N31:Q31,"△") -> 0 | AG31: =AD31*3+AE31*1+AF31*2 -> 9 | AH31: =SUM(AD31:AF32) -> 3 | AI31: =AG31/AH31 -> 3
C32: ２－０ | D32: ２－１ | F32: １－２ | N32: ２－１ | O32: ２－０ | Q32: ２－０
A33: 4 | B33: 高松工芸B | C33: × | D33: × | E33: ○ | G33: =W33&" - "&X33&" - "&Y33 -> 1 - 2 - 0 | H33: =Z33 -> 5 | I33: =ROUND(AB33,2) -> 1.67 | J33: 4 | L33: 4 | M33: 松山東D | N33: × | O33: × | P33: × | R33: =AD33&" - "&AE33&" - "&AF33 -> 0 - 3 - 0 | S33: =AG33 -> 3 | T33: =ROUND(AI33,2) -> 1 | U33: 4 | W33: =COUNTIF(C33:F33,"○") -> 1 | X33: =COUNTIF(C33:F33,"×") -> 2 | Y33: =COUNTIF(C33:F33,"△") -> 0 | Z33: =W33*3+X33*1+Y33*2 -> 5 | AA33: =SUM(W33:Y34) -> 3 | AB33: =Z33/AA33 -> 1.666666667 | AD33: =COUNTIF(N33:Q33,"○") -> 0 | AE33: =COUNTIF(N33:Q33,"×") -> 3 | AF33: =COUNTIF(N33:Q33,"△") -> 0 | AG33: =AD33*3+AE33*1+AF33*2 -> 3 | AH33: =SUM(AD33:AF34) -> 3 | AI33: =AG33/AH33 -> 1
C34: １－２ | D34: １－２ | E34: ２－１ | N34: ０－２ | O34: ０－２ | P34: ０－２
B35: ※ | C35: 三崎Bと三崎A、松山北Cと高松工芸Bは同率のため、直接対決の結果で順位を決定。
B36: ７，８位リーグ
C37: =B38 -> 東温B | D37: =B40 -> 松山商業D | E37: =B42 -> 和歌山商業C | F37: =B44 -> 城南C | G37: 勝敗分 | H37: ポイント | I37: 得点率 | J37: 順位 | M37: ※ | N37: ポイントは「勝→３点、分→２点、負→１点、棄権→０点」で計算。 得点率は「ポイント÷試合数」で計算。 | W37: 勝 | X37: 負 | Y37: 分 | Z37: ポイント | AA37: 試合数 | AB37: 勝率
A38: 1 | B38: 東温B | D38: ○ | E38: × | F38: ○ | G38: =W38&" - "&X38&" - "&Y38 -> 2 - 1 - 0 | H38: =Z38 -> 7 | I38: =ROUND(AB38,2) -> 2.33 | J38: =RANK(AB38,AB$38:AB$44) -> 2 | W38: =COUNTIF(C38:F38,"○") -> 2 | X38: =COUNTIF(C38:F38,"×") -> 1 | Y38: =COUNTIF(C38:F38,"△") -> 0 | Z38: =W38*3+X38*1+Y38*2 -> 7 | AA38: =SUM(W38:Y39) -> 3 | AB38: =Z38/AA38 -> 2.333333333
D39: ２－１ | E39: １－２ | F39: ２－１
A40: 2 | B40: 松山商業D | C40: × | E40: × | F40: ○ | G40: =W40&" - "&X40&" - "&Y40 -> 1 - 2 - 0 | H40: =Z40 -> 5 | I40: =ROUND(AB40,2) -> 1.67 | J40: =RANK(AB40,AB$38:AB$44) -> 3 | W40: =COUNTIF(C40:F40,"○") -> 1 | X40: =COUNTIF(C40:F40,"×") -> 2 | Y40: =COUNTIF(C40:F40,"△") -> 0 | Z40: =W40*3+X40*1+Y40*2 -> 5 | AA40: =SUM(W40:Y41) -> 3 | AB40: =Z40/AA40 -> 1.666666667
C41: １－２ | E41: １－２ | F41: ２－１
A42: 3 | B42: 和歌山商業C | C42: ○ | D42: ○ | F42: ○ | G42: =W42&" - "&X42&" - "&Y42 -> 3 - 0 - 0 | H42: =Z42 -> 9 | I42: =ROUND(AB42,2) -> 3 | J42: =RANK(AB42,AB$38:AB$44) -> 1 | W42: =COUNTIF(C42:F42,"○") -> 3 | X42: =COUNTIF(C42:F42,"×") -> 0 | Y42: =COUNTIF(C42:F42,"△") -> 0 | Z42: =W42*3+X42*1+Y42*2 -> 9 | AA42: =SUM(W42:Y43) -> 3 | AB42: =Z42/AA42 -> 3
C43: ２－１ | D43: ２－１ | F43: ２－１
A44: 4 | B44: 城南C | C44: × | D44: × | E44: × | G44: =W44&" - "&X44&" - "&Y44 -> 0 - 3 - 0 | H44: =Z44 -> 3 | I44: =ROUND(AB44,2) -> 1 | J44: =RANK(AB44,AB$38:AB$44) -> 4 | W44: =COUNTIF(C44:F44,"○") -> 0 | X44: =COUNTIF(C44:F44,"×") -> 3 | Y44: =COUNTIF(C44:F44,"△") -> 0 | Z44: =W44*3+X44*1+Y44*2 -> 3 | AA44: =SUM(W44:Y45) -> 3 | AB44: =Z44/AA44 -> 1
C45: １－２ | D45: １－２ | E45: １－２

Sheet 女子スーパー
A1: 女子スーパーリーグ
C3: =B4 -> 和歌山商業Ａ | D3: =B6 -> 長崎選抜 | E3: =B8 -> 長崎女子商A | F3: =B10 -> 城南A | G3: =B12 -> 城南B | H3: =B14 -> 徳島商業A | I3: =B16 -> 徳島商業B | J3: =B18 -> 富岡西A | K3: =B20 -> 高松商業A | L3: =B22 -> 高松商業B | M3: =B24 -> 香川西A | N3: =B26 -> 香川西B | O3: =B28 -> 愛媛選抜 | P3: =B30 -> 済美A | Q3: =B32 -> 済美B | R3: =B34 -> 伊予農業A | S3: =B36 -> 伊予農業B | T3: =B38 -> 今治南A | U3: 勝敗分 | V3: ポイント | W3: 得点率 | X3: 順位 | Y3: チーム名 | Z3: 勝 | AA3: 負 | AB3: 分 | AC3: ポイント | AD3: 試合数 | AE3: 勝率
A4: 1 | B4: =Y4 -> 和歌山商業Ａ | D4: × | E4: × | F4: × | G4: ○ | H4: × | I4: × | J4: × | K4: × | L4: × | M4: ○ | N4: ○ | O4: × | P4: × | Q4: × | R4: × | S4: △ | U4: =Z4&" - "&AA4&" - "&AB4 -> 3 - 12 - 1 | V4: =AC4 -> 23 | W4: =ROUND(AE4,2) -> 1.44 | X4: =RANK(AE4,AE$4:AE$39) -> 15 | Y4: 和歌山商業Ａ | Z4: =COUNTIF(C4:T4,"○") -> 3 | AA4: =COUNTIF(C4:T4,"×") -> 12 | AB4: =COUNTIF(C4:T4,"△") -> 1 | AC4: =Z4*3+AA4*1+AB4*2 -> 23 | AD4: =SUM(Z4:AB5) -> 16 | AE4: =AC4/AD4 -> 1.4375
D5: １－２ | E5: １－２ | F5: ０－２ | G5: １－０ | H5: ０－２ | I5: ０－２ | J5: １－２ | K5: ０－２ | L5: ０－２ | M5: ２－１ | N5: ２－１ | O5: ０－２ | P5: ０－２ | Q5: ０－２ | R5: ０－１ | S5: １－１
A6: 2 | B6: =Y6 -> 長崎選抜 | C6: ○ | E6: ○ | F6: × | G6: ○ | H6: × | I6: ○ | J6: ○ | K6: ○ | L6: × | M6: × | N6: ○ | O6: × | P6: × | Q6: × | R6: △ | S6: ○ | T6: ○ | U6: =Z6&" - "&AA6&" - "&AB6 -> 9 - 7 - 1 | V6: =AC6 -> 36 | W6: =ROUND(AE6,2) -> 2.12 | X6: =RANK(AE6,AE$4:AE$39) -> 9 | Y6: 長崎選抜 | Z6: =COUNTIF(C6:T6,"○") -> 9 | AA6: =COUNTIF(C6:T6,"×") -> 7 | AB6: =COUNTIF(C6:T6,"△") -> 1 | AC6: =Z6*3+AA6*1+AB6*2 -> 36 | AD6: =SUM(Z6:AB7) -> 17 | AE6: =AC6/AD6 -> 2.117647059
C7: ２－１ | E7: ２－０ | F7: ０－２ | G7: １－０ | H7: ０－２ | I7: ２－０ | J7: ２－０ | K7: ２－０ | L7: ０－２ | M7: ０－２ | N7: ２－０ | O7: ０－２ | P7: ０－２ | Q7: ０－２ | R7: １－１ | S7: ２－０ | T7: ２－０
A8: 3 | B8: =Y8 -> 長崎女子商A | C8: ○ | D8: × | F8: △ | G8: × | H8: × | I8: △ | J8: × | K8: △ | L8: ○ | M8: × | N8: ○ | O8: × | P8: × | Q8: × | R8: △ | S8: ○ | T8: × | U8: =Z8&" - "&AA8&" - "&AB8 -> 4 - 9 - 4 | V8: =AC8 -> 29 | W8: =ROUND(AE8,2) -> 1.71 | X8: =RANK(AE8,AE$4:AE$39) -> 13 | Y8: 長崎女子商A | Z8: =COUNTIF(C8:T8,"○") -> 4 | AA8: =COUNTIF(C8:T8,"×") -> 9 | AB8: =COUNTIF(C8:T8,"△") -> 4 | AC8: =Z8*3+AA8*1+AB8*2 -> 29 | AD8: =SUM(Z8:AB9) -> 17 | AE8: =AC8/AD8 -> 1.705882353
C9: ２－１ | D9: ０－２ | F9: １－１ | G9: ０－２ | H9: ０－２ | I9: １－１ | J9: ０－２ | K9: １－１ | L9: ２－０ | M9: ０－２ | N9: ２－１ | O9: ０－２ | P9: ０－２ | Q9: ０－２ | R9: １－１ | S9: ２－０ | T9: １－２
A10: 4 | B10: =Y10 -> 城南A | C10: ○ | D10: ○ | E10: △ | H10: ○ | I10: ○ | J10: ○ | K10: × | L10: ○ | M10: × | N10: ○ | O10: × | P10: △ | Q10: × | R10: ○ | S10: ○ | T10: △ | U10: =Z10&" - "&AA10&" - "&AB10 -> 9 - 4 - 3 | V10: =AC10 -> 37 | W10: =ROUND(AE10,2) -> 2.31 | X10: =RANK(AE10,AE$4:AE$39) -> 4 | Y10: 城南A | Z10: =COUNTIF(C10:T10,"○") -> 9 | AA10: =COUNTIF(C10:T10,"×") -> 4 | AB10: =COUNTIF(C10:T10,"△") -> 3 | AC10: =Z10*3+AA10*1+AB10*2 -> 37 | AD10: =SUM(Z10:AB11) -> 16 | AE10: =AC10/AD10 -> 2.3125
C11: ２－０ | D11: ２－０ | E11: １－１ | H11: ２－０ | I11: ２－１ | J11: ２－０ | K11: ０－２ | L11: ２－０ | M11: ０－２ | N11: ２－０ | O11: ０－２ | P11: １－１ | Q11: １－２ | R11: ２－０ | S11: ２－０ | T11: １－１
A12: 5 | B12: =Y12 -> 城南B | C12: × | D12: × | E12: ○ | H12: × | I12: ○ | J12: ○ | K12: ○ | L12: × | M12: × | N12: ○ | O12: × | P12: × | Q12: ○ | R12: ○ | S12: ○ | T12: × | U12: =Z12&" - "&AA12&" - "&AB12 -> 8 - 8 - 0 | V12: =AC12 -> 32 | W12: =ROUND(AE12,2) -> 2 | X12: =RANK(AE12,AE$4:AE$39) -> 10 | Y12: 城南B | Z12: =COUNTIF(C12:T12,"○") -> 8 | AA12: =COUNTIF(C12:T12,"×") -> 8 | AB12: =COUNTIF(C12:T12,"△") -> 0 | AC12: =Z12*3+AA12*1+AB12*2 -> 32 | AD12: =SUM(Z12:AB13) -> 16 | AE12: =AC12/AD12 -> 2
C13: ０－１ | D13: ０－１ | E13: ２－０ | H13: ０－２ | I13: ２－０ | J13: ２－１ | K13: ２－１ | L13: ０－２ | M13: ０－２ | N13: ２－０ | O13: １－２ | P13: ０－２ | Q13: ２－０ | R13: ２－０ | S13: ２－１ | T13: ０－２
A14: 6 | B14: =Y14 -> 徳島商業A | C14: ○ | D14: ○ | E14: ○ | F14: × | G14: ○ | J14: ○ | K14: ○ | L14: × | M14: △ | N14: ○ | O14: × | P14: × | Q14: × | R14: ○ | S14: ○ | T14: ○ | U14: =Z14&" - "&AA14&" - "&AB14 -> 10 - 5 - 1 | V14: =AC14 -> 37 | W14: =ROUND(AE14,2) -> 2.31 | X14: =RANK(AE14,AE$4:AE$39) -> 4 | Y14: 徳島商業A | Z14: =COUNTIF(C14:T14,"○") -> 10 | AA14: =COUNTIF(C14:T14,"×") -> 5 | AB14: =COUNTIF(C14:T14,"△") -> 1 | AC14: =Z14*3+AA14*1+AB14*2 -> 37 | AD14: =SUM(Z14:AB15) -> 16 | AE14: =AC14/AD14 -> 2.3125
C15: ２－０ | D15: ２－０ | E15: ２－０ | F15: ０－２ | G15: ２－０ | J15: ２－０ | K15: ２－０ | L15: ０－１ | M15: １－１ | N15: ２－０ | O15: ０－２ | P15: ０－２ | Q15: １－２ | R15: ２－０ | S15: ２－０ | T15: ２－１
A16: 7 | B16: =Y16 -> 徳島商業B | C16: ○ | D16: × | E16: △ | F16: × | G16: × | J16: ○ | K16: × | L16: × | M16: × | N16: ○ | O16: × | P16: × | Q16: × | R16: △ | S16: △ | T16: × | U16: =Z16&" - "&AA16&" - "&AB16 -> 3 - 10 - 3 | V16: =AC16 -> 25 | W16: =ROUND(AE16,2) -> 1.56 | X16: =RANK(AE16,AE$4:AE$39) -> 14 | Y16: 徳島商業B | Z16: =COUNTIF(C16:T16,"○") -> 3 | AA16: =COUNTIF(C16:T16,"×") -> 10 | AB16: =COUNTIF(C16:T16,"△") -> 3 | AC16: =Z16*3+AA16*1+AB16*2 -> 25 | AD16: =SUM(Z16:AB17) -> 16 | AE16: =AC16/AD16 -> 1.5625
C17: ２－０ | D17: ０－２ | E17: １－１ | F17: １－２ | G17: ０－２ | J17: ２－０ | K17: ０－２ | L17: １－２ | M17: ０－２ | N17: ２－０ | O17: ０－２ | P17: ０－２ | Q17: １－２ | R17: １－１ | S17: １－１ | T17: １－２
A18: 8 | B18: =Y18 -> 富岡西A | C18: ○ | D18: × | E18: ○ | F18: × | G18: × | H18: × | I18: × | K18: × | L18: × | M18: × | N18: ○ | O18: × | P18: × | Q18: × | R18: × | S18: × | T18: × | U18: =Z18&" - "&AA18&" - "&AB18 -> 3 - 14 - 0 | V18: =AC18 -> 23 | W18: =ROUND(AE18,2) -> 1.35 | X18: =RANK(AE18,AE$4:AE$39) -> 17 | Y18: 富岡西A | Z18: =COUNTIF(C18:T18,"○") -> 3 | AA18: =COUNTIF(C18:T18,"×") -> 14 | AB18: =COUNTIF(C18:T18,"△") -> 0 | AC18: =Z18*3+AA18*1+AB18*2 -> 23 | AD18: =SUM(Z18:AB19) -> 17 | AE18: =AC18/AD18 -> 1.352941176
C19: ２－１ | D19: ０－２ | E19: ２－０ | F19: ０－２ | G19: １－２ | H19: ０－２ | I19: ０－２ | K19: ０－２ | L19: １－２ | M19: ０－２ | N19: ２－１ | O19: １－２ | P19: ０－２ | Q19: １－２ | R19: ０－２ | S19: ０－２ | T19: １－２
A20: 9 | B20: =Y20 -> 高松商業A | C20: ○ | D20: × | E20: △ | F20: ○ | G20: × | H20: × | I20: ○ | J20: ○ | M20: ○ | N20: ○ | O20: × | P20: × | Q20: × | R20: × | S20: ○ | T20: × | U20: =Z20&" - "&AA20&" - "&AB20 -> 7 - 8 - 1 | V20: =AC20 -> 31 | W20: =ROUND(AE20,2) -> 1.94 | X20: =RANK(AE20,AE$4:AE$39) -> 11 | Y20: 高松商業A | Z20: =COUNTIF(C20:T20,"○") -> 7 | AA20: =COUNTIF(C20:T20,"×") -> 8 | AB20: =COUNTIF(C20:T20,"△") -> 1 | AC20: =Z20*3+AA20*1+AB20*2 -> 31 | AD20: =SUM(Z20:AB21) -> 16 | AE20: =AC20/AD20 -> 1.9375
C21: ２－０ | D21: ０－２ | E21: １－１ | F21: ２－０ | G21: １－２ | H21: ０－２ | I21: ２－０ | J21: ２－０ | M21: ２－１ | N21: ２－０ | O21: ０－２ | P21: ０－２ | Q21: １－２ | R21: ０－２ | S21: ２－１ | T21: ０－２
A22: 10 | B22: =Y22 -> 高松商業B | C22: ○ | D22: ○ | E22: × | F22: × | G22: ○ | H22: ○ | I22: ○ | J22: ○ | M22: × | N22: ○ | O22: × | P22: × | Q22: △ | R22: △ | S22: ○ | T22: × | U22: =Z22&" - "&AA22&" - "&AB22 -> 8 - 6 - 2 | V22: =AC22 -> 34 | W22: =ROUND(AE22,2) -> 2.13 | X22: =RANK(AE22,AE$4:AE$39) -> 8 | Y22: 高松商業B | Z22: =COUNTIF(C22:T22,"○") -> 8 | AA22: =COUNTIF(C22:T22,"×") -> 6 | AB22: =COUNTIF(C22:T22,"△") -> 2 | AC22: =Z22*3+AA22*1+AB22*2 -> 34 | AD22: =SUM(Z22:AB23) -> 16 | AE22: =AC22/AD22 -> 2.125
C23: ２－０ | D23: ２－０ | E23: ０－２ | F23: ０－２ | G23: ２－０ | H23: １－０ | I23: ２－１ | J23: ２－１ | M23: ０－２ | N23: ２－０ | O23: ０－２ | P23: ０－２ | Q23: １－１ | R23: １－１ | S23: ２－０ | T23: １－２
A24: 11 | B24: =Y24 -> 香川西A | C24: × | D24: ○ | E24: ○ | F24: ○ | G24: ○ | H24: △ | I24: ○ | J24: ○ | K24: × | L24: ○ | O24: × | P24: × | Q24: × | R24: ○ | S24: ○ | T24: ○ | U24: =Z24&" - "&AA24&" - "&AB24 -> 10 - 5 - 1 | V24: =AC24 -> 37 | W24: =ROUND(AE24,2) -> 2.31 | X24: =RANK(AE24,AE$4:AE$39) -> 4 | Y24: 香川西A | Z24: =COUNTIF(C24:T24,"○") -> 10 | AA24: =COUNTIF(C24:T24,"×") -> 5 | AB24: =COUNTIF(C24:T24,"△") -> 1 | AC24: =Z24*3+AA24*1+AB24*2 -> 37 | AD24: =SUM(Z24:AB25) -> 16 | AE24: =AC24/AD24 -> 2.3125
C25: １－２ | D25: ２－０ | E25: ２－０ | F25: ２－０ | G25: ２－０ | H25: １－１ | I25: ２－０ | J25: ２－０ | K25: １－２ | L25: ２－０ | O25: １－２ | P25: １－２ | Q25: １－２ | R25: ２－０ | S25: ２－１ | T25: ２－０
A26: 12 | B26: =Y26 -> 香川西B | C26: × | D26: × | E26: × | F26: × | G26: × | H26: × | I26: × | J26: × | K26: × | L26: × | O26: × | P26: × | Q26: × | R26: × | S26: × | T26: × | U26: =Z26&" - "&AA26&" - "&AB26 -> 0 - 16 - 0 | V26: =AC26 -> 16 | W26: =ROUND(AE26,2) -> 1 | X26: =RANK(AE26,AE$4:AE$39) -> 18 | Y26: 香川西B | Z26: =COUNTIF(C26:T26,"○") -> 0 | AA26: =COUNTIF(C26:T26,"×") -> 16 | AB26: =COUNTIF(C26:T26,"△") -> 0 | AC26: =Z26*3+AA26*1+AB26*2 -> 16 | AD26: =SUM(Z26:AB27) -> 16 | AE26: =AC26/AD26 -> 1
C27: １－２ | D27: ０－２ | E27: １－２ | F27: ０－２ | G27: ０－２ | H27: ０－２ | I27: ０－２ | J27: １－２ | K27: ０－２ | L27: ０－２ | O27: ０－２ | P27: ０－２ | Q27: ０－２ | R27: １－２ | S27: ０－２ | T27: ０－２
A28: 13 | B28: =Y28 -> 愛媛選抜 | C28: ○ | D28: ○ | E28: ○ | F28: ○ | G28: ○ | H28: ○ | I28: ○ | J28: ○ | K28: ○ | L28: ○ | M28: ○ | N28: ○ | P28: × | Q28: ○ | R28: ○ | S28: ○ | T28: ○ | U28: =Z28&" - "&AA28&" - "&AB28 -> 16 - 1 - 0 | V28: =AC28 -> 49 | W28: =ROUND(AE28,2) -> 2.88 | X28: =RANK(AE28,AE$4:AE$39) -> 2 | Y28: 愛媛選抜 | Z28: =COUNTIF(C28:T28,"○") -> 16 | AA28: =COUNTIF(C28:T28,"×") -> 1 | AB28: =COUNTIF(C28:T28,"△") -> 0 | AC28: =Z28*3+AA28*1+AB28*2 -> 49 | AD28: =SUM(Z28:AB29) -> 17 | AE28: =AC28/AD28 -> 2.882352941
C29: ２－０ | D29: ２－０ | E29: ２－０ | F29: ２－０ | G29: ２－１ | H29: ２－０ | I29: ２－０ | J29: ２－１ | K29: ２－０ | L29: ２－０ | M29: ２－１ | N29: ２－０ | P29: １－２ | Q29: ２－０ | R29: ２－０ | S29: ２－０ | T29: ２－０
A30: 14 | B30: =Y30 -> 済美A | C30: ○ | D30: ○ | E30: ○ | F30: △ | G30: ○ | H30: ○ | I30: ○ | J30: ○ | K30: ○ | L30: ○ | M30: ○ | N30: ○ | O30: ○ | R30: ○ | S30: ○ | T30: ○ | U30: =Z30&" - "&AA30&" - "&AB30 -> 15 - 0 - 1 | V30: =AC30 -> 47 | W30: =ROUND(AE30,2) -> 2.94 | X30: =RANK(AE30,AE$4:AE$39) -> 1 | Y30: 済美A | Z30: =COUNTIF(C30:T30,"○") -> 15 | AA30: =COUNTIF(C30:T30,"×") -> 0 | AB30: =COUNTIF(C30:T30,"△") -> 1 | AC30: =Z30*3+AA30*1+AB30*2 -> 47 | AD30: =SUM(Z30:AB31) -> 16 | AE30: =AC30/AD30 -> 2.9375
C31: ２－０ | D31: ２－０ | E31: ２－０ | F31: １－１ | G31: ２－０ | H31: ２－０ | I31: ２－０ | J31: ２－０ | K31: ２－０ | L31: ２－０ | M31: ２－１ | N31: ２－０ | O31: ２－１ | R31: ２－０ | S31: ２－０ | T31: ２－０
A32: 15 | B32: =Y32 -> 済美B | C32: ○ | D32: ○ | E32: ○ | F32: ○ | G32: × | H32: ○ | I32: ○ | J32: ○ | K32: ○ | L32: △ | M32: ○ | N32: ○ | O32: × | R32: △ | S32: ○ | T32: ○ | U32: 12 - 2 - 2 | V32: =AC32 -> 42 | W32: =ROUND(AE32,2) -> 2.63 | X32: =RANK(AE32,AE$4:AE$39) -> 3 | Y32: 済美B | Z32: =COUNTIF(C32:T32,"○") -> 12 | AA32: =COUNTIF(C32:T32,"×") -> 2 | AB32: =COUNTIF(C32:T32,"△") -> 2 | AC32: =Z32*3+AA32*1+AB32*2 -> 42 | AD32: =SUM(Z32:AB33) -> 16 | AE32: =AC32/AD32 -> 2.625
C33: ２－０ | D33: ２－０ | E33: ２－０ | F33: ２－１ | G33: ０－２ | H33: ２－１ | I33: ２－１ | J33: ２－１ | K33: ２－１ | L33: １－１ | M33: ２－１ | N33: ２－０ | O33: ０－２ | R33: １－１ | S33: ２－０ | T33: ２－１
A34: 16 | B34: =Y34 -> 伊予農業A | C34: ○ | D34: △ | E34: △ | F34: × | G34: × | H34: × | I34: △ | J34: ○ | K34: ○ | L34: △ | M34: × | N34: ○ | O34: × | P34: × | Q34: △ | T34: × | U34: =Z34&" - "&AA34&" - "&AB34 -> 4 - 7 - 5 | V34: =AC34 -> 29 | W34: =ROUND(AE34,2) -> 1.81 | X34: =RANK(AE34,AE$4:AE$39) -> 12 | Y34: 伊予農業A | Z34: =COUNTIF(C34:T34,"○") -> 4 | AA34: =COUNTIF(C34:T34,"×") -> 7 | AB34: =COUNTIF(C34:T34,"△") -> 5 | AC34: =Z34*3+AA34*1+AB34*2 -> 29 | AD34: =SUM(Z34:AB35) -> 16 | AE34: =AC34/AD34 -> 1.8125
C35: １－０ | D35: １－１ | E35: １－１ | F35: ０－２ | G35: ０－２ | H35: ０－２ | I35: １－１ | J35: ２－０ | K35: ２－０ | L35: １－１ | M35: ０－２ | N35: ２－１ | O35: ０－２ | P35: ０－２ | Q35: １－１ | T35: １－２
A36: 17 | B36: =Y36 -> 伊予農業B | C36: △ | D36: × | E36: × | F36: × | G36: × | H36: × | I36: △ | J36: ○ | K36: × | L36: × | M36: × | N36: ○ | O36: × | P36: × | Q36: × | T36: × | U36: =Z36&" - "&AA36&" - "&AB36 -> 2 - 12 - 2 | V36: =AC36 -> 22 | W36: =ROUND(AE36,2) -> 1.38 | X36: =RANK(AE36,AE$4:AE$39) -> 16 | Y36: 伊予農業B | Z36: =COUNTIF(C36:T36,"○") -> 2 | AA36: =COUNTIF(C36:T36,"×") -> 12 | AB36: =COUNTIF(C36:T36,"△") -> 2 | AC36: =Z36*3+AA36*1+AB36*2 -> 22 | AD36: =SUM(Z36:AB37) -> 16 | AE36: =AC36/AD36 -> 1.375
C37: １－１ | D37: ０－２ | E37: ０－２ | F37: ０－２ | G37: １－２ | H37: ０－２ | I37: １－１ | J37: ２－０ | K37: １－２ | L37: ０－２ | M37: １－２ | N37: ２－０ | O37: ０－２ | P37: ０－２ | Q37: ０－２ | T37: ０－２
A38: 18 | B38: =Y38 -> 今治南A | D38: × | E38: ○ | F38: △ | G38: ○ | H38: × | I38: ○ | J38: ○ | K38: ○ | L38: ○ | M38: × | N38: ○ | O38: × | P38: × | Q38: × | R38: ○ | S38: ○ | U38: =Z38&" - "&AA38&" - "&AB38 -> 9 - 6 - 1 | V38: =AC38 -> 35 | W38: =ROUND(AE38,2) -> 2.19 | X38: =RANK(AE38,AE$4:AE$39) -> 7 | Y38: 今治南A | Z38: =COUNTIF(C38:T38,"○") -> 9 | AA38: =COUNTIF(C38:T38,"×") -> 6 | AB38: =COUNTIF(C38:T38,"△") -> 1 | AC38: =Z38*3+AA38*1+AB38*2 -> 35 | AD38: =SUM(Z38:AB39) -> 16 | AE38: =AC38/AD38 -> 2.1875
D39: ０－２ | E39: ２－１ | F39: １－１ | G39: ２－０ | H39: １－２ | I39: ２－１ | J39: ２－１ | K39: ２－０ | L39: ２－１ | M39: ０－２ | N39: ２－０ | O39: ０－２ | P39: ０－２ | Q39: １－２ | R39: ２－１ | S39: ２－０
C41: ※ | D41: ポイントは「勝→３点、分→２点、負→１点、棄権→０点」で計算。得点率は「ポイント÷試合数」で計算。
C42: ※ | D42: 香川西A、城南A、徳島商業Aは同率のため、直接対決の結果で順位を決定。

Sheet 女子一般
A1: 女子一般リーグ
C3: =B4 -> 和歌山商業B | D3: =B6 -> 長崎女子商B | E3: =B8 -> 富岡西B | F3: =B10 -> 高松商業C | G3: =B12 -> 伊予農業C | H3: =B14 -> 伊予農業D | I3: =B16 -> 今治南B | J3: =B18 -> 松山南A | K3: =B20 -> 松山南B | L3: =B22 -> 松山南C | M3: =B24 -> 今治北A | N3: =B26 -> 今治北B | O3: =B28 -> 今治西A | P3: =B30 -> 今治西B | Q3: =B32 -> 宇和島東A | R3: =B34 -> 宇和島東B | S3: =B36 -> 宇和島東C | T3: 勝敗分 | U3: ポイント | V3: 得点率 | W3: 順位 | X3: チーム名 | Y3: 勝 | Z3: 負 | AA3: 分 | AB3: ポイント | AC3: 試合数 | AD3: 勝率
A4: 1 | B4: =X4 -> 和歌山商業B | D4: × | E4: × | F4: × | G4: × | H4: × | I4: × | J4: × | K4: × | L4: × | N4: ○ | O4: × | P4: ○ | Q4: × | R4: × | S4: × | T4: =Y4&" - "&Z4&" - "&AA4 -> 2 - 13 - 0 | U4: =AB4 -> 19 | V4: =ROUND(AD4,2) -> 1.27 | W4: 16 | X4: 和歌山商業B | Y4: =COUNTIF(C4:S4,"○") -> 2 | Z4: =COUNTIF(C4:S4,"×") -> 13 | AA4: =COUNTIF(C4:S4,"△") -> 0 | AB4: =Y4*3+Z4*1+AA4*2 -> 19 | AC4: =SUM(Y4:AA5) -> 15 | AD4: =AB4/AC4 -> 1.266666667
D5: ０－２ | E5: ０－２ | F5: ０－２ | G5: ０－２ | H5: １－２ | I5: ０－２ | J5: ０－２ | K5: ０－２ | L5: ０－２ | N5: ２－０ | O5: ０－２ | P5: ２－０ | Q5: ０－２ | R5: ０－２ | S5: ０－２
A6: 2 | B6: =X6 -> 長崎女子商B | C6: ○ | E6: ○ | F6: ○ | G6: ○ | H6: ○ | I6: ○ | J6: ○ | K6: △ | L6: ○ | M6: ○ | N6: ○ | O6: ○ | P6: ○ | Q6: ○ | R6: ○ | S6: ○ | T6: =Y6&" - "&Z6&" - "&AA6 -> 15 - 0 - 1 | U6: =AB6 -> 47 | V6: =ROUND(AD6,2) -> 2.94 | W6: =RANK(AD6,AD$4:AD$37) -> 1 | X6: 長崎女子商B | Y6: =COUNTIF(C6:S6,"○") -> 15 | Z6: =COUNTIF(C6:S6,"×") -> 0 | AA6: =COUNTIF(C6:S6,"△") -> 1 | AB6: =Y6*3+Z6*1+AA6*2 -> 47 | AC6: =SUM(Y6:AA7) -> 16 | AD6: =AB6/AC6 -> 2.9375
C7: ２－０ | E7: ２－０ | F7: ２－１ | G7: ２－０ | H7: ２－０ | I7: ２－０ | J7: ２－０ | K7: １－１ | L7: ２－０ | M7: ２－０ | N7: ２－１ | O7: ２－１ | P7: ２－０ | Q7: ２－１ | R7: ２－０ | S7: ２－０
A8: 3 | B8: =X8 -> 富岡西B | C8: ○ | D8: × | F8: △ | G8: × | H8: ○ | I8: × | J8: × | K8: × | L8: △ | M8: × | N8: ○ | O8: × | P8: ○ | Q8: × | R8: × | S8: × | T8: =Y8&" - "&Z8&" - "&AA8 -> 4 - 10 - 2 | U8: =AB8 -> 26 | V8: =ROUND(AD8,2) -> 1.63 | W8: =RANK(AD8,AD$4:AD$37) -> 12 | X8: 富岡西B | Y8: =COUNTIF(C8:S8,"○") -> 4 | Z8: =COUNTIF(C8:S8,"×") -> 10 | AA8: =COUNTIF(C8:S8,"△") -> 2 | AB8: =Y8*3+Z8*1+AA8*2 -> 26 | AC8: =SUM(Y8:AA9) -> 16 | AD8: =AB8/AC8 -> 1.625
C9: ２－０ | D9: ０－２ | F9: １－１ | G9: ０－２ | H9: ２－１ | I9: １－２ | J9: ０－２ | K9: ０－２ | L9: １－１ | M9: ０－２ | N9: ２－０ | O9: ０－２ | P9: ２－０ | Q9: ０－２ | R9: ０－２ | S9: １－２
A10: 4 | B10: =X10 -> 高松商業C | C10: ○ | D10: × | E10: △ | G10: ○ | H10: ○ | I10: × | J10: ○ | K10: × | L10: ○ | M10: ○ | N10: ○ | O10: × | P10: ○ | Q10: ○ | R10: × | S10: ○ | T10: =Y10&" - "&Z10&" - "&AA10 -> 10 - 5 - 1 | U10: =AB10 -> 37 | V10: =ROUND(AD10,2) -> 2.31 | W10: =RANK(AD10,AD$4:AD$37) -> 6 | X10: 高松商業C | Y10: =COUNTIF(C10:S10,"○") -> 10 | Z10: =COUNTIF(C10:S10,"×") -> 5 | AA10: =COUNTIF(C10:S10,"△") -> 1 | AB10: =Y10*3+Z10*1+AA10*2 -> 37 | AC10: =SUM(Y10:AA11) -> 16 | AD10: =AB10/AC10 -> 2.3125
C11: ２－０ | D11: １－２ | E11: １－１ | G11: ２－０ | H11: ２－０ | I11: １－２ | J11: ２－１ | K11: １－２ | L11: ２－０ | M11: ２－０ | N11: ２－１ | O11: １－２ | P11: ２－０ | Q11: ２－１ | R11: ０－２ | S11: ２－１
A12: 5 | B12: =X12 -> 伊予農業C | C12: ○ | D12: × | E12: ○ | F12: × | I12: × | J12: × | K12: × | L12: △ | M12: × | N12: × | O12: × | P12: ○ | Q12: × | R12: × | S12: ○ | T12: =Y12&" - "&Z12&" - "&AA12 -> 4 - 10 - 1 | U12: =AB12 -> 24 | V12: =ROUND(AD12,2) -> 1.6 | W12: =RANK(AD12,AD$4:AD$37) -> 13 | X12: 伊予農業C | Y12: =COUNTIF(C12:S12,"○") -> 4 | Z12: =COUNTIF(C12:S12,"×") -> 10 | AA12: =COUNTIF(C12:S12,"△") -> 1 | AB12: =Y12*3+Z12*1+AA12*2 -> 24 | AC12: =SUM(Y12:AA13) -> 15 | AD12: =AB12/AC12 -> 1.6
C13: ２－０ | D13: ０－２ | E13: ２－０ | F13: ０－２ | I13: ０－２ | J13: ０－２ | K13: ０－２ | L13: １－１ | M13: ０－２ | N13: １－２ | O13: ０－２ | P13: ２－１ | Q13: ０－２ | R13: ０－２ | S13: ２－０
A14: 6 | B14: =X14 -> 伊予農業D | C14: ○ | D14: × | E14: × | F14: × | I14: × | J14: × | K14: × | L14: × | M14: × | N14: × | O14: × | P14: ○ | Q14: × | R14: × | S14: × | T14: =Y14&" - "&Z14&" - "&AA14 -> 2 - 13 - 0 | U14: =AB14 -> 19 | V14: =ROUND(AD14,2) -> 1.27 | W14: =RANK(AD14,AD$4:AD$37) -> 15 | X14: 伊予農業D | Y14: =COUNTIF(C14:S14,"○") -> 2 | Z14: =COUNTIF(C14:S14,"×") -> 13 | AA14: =COUNTIF(C14:S14,"△") -> 0 | AB14: =Y14*3+Z14*1+AA14*2 -> 19 | AC14: =SUM(Y14:AA15) -> 15 | AD14: =AB14/AC14 -> 1.266666667
C15: ２－１ | D15: ０－２ | E15: １－２ | F15: ０－２ | I15: ０－２ | J15: ０－２ | K15: ０－２ | L15: １－２ | M15: １－２ | N15: ０－２ | O15: ０－２ | P15: ２－０ | Q15: ０－２ | R15: ０－２ | S15: ０－２
A16: 7 | B16: =X16 -> 今治南B | C16: ○ | D16: × | E16: ○ | F16: ○ | G16: ○ | H16: ○ | J16: × | K16: ○ | L16: ○ | M16: ○ | N16: ○ | O16: × | P16: ○ | Q16: ○ | R16: × | S16: ○ | T16: =Y16&" - "&Z16&" - "&AA16 -> 12 - 4 - 0 | U16: =AB16 -> 40 | V16: =ROUND(AD16,2) -> 2.5 | W16: =RANK(AD16,AD$4:AD$37) -> 4 | X16: 今治南B | Y16: =COUNTIF(C16:S16,"○") -> 12 | Z16: =COUNTIF(C16:S16,"×") -> 4 | AA16: =COUNTIF(C16:S16,"△") -> 0 | AB16: =Y16*3+Z16*1+AA16*2 -> 40 | AC16: =SUM(Y16:AA17) -> 16 | AD16: =AB16/AC16 -> 2.5
C17: ２－０ | D17: ０－２ | E17: ２－１ | F17: ２－１ | G17: ２－０ | H17: ２－０ | J17: ０－２ | K17: ２－１ | L17: ２－０ | M17: ２－０ | N17: ２－０ | O17: ０－２ | P17: ２－０ | Q17: ２－１ | R17: ０－２ | S17: ２－１
A18: 8 | B18: =X18 -> 松山南A | C18: ○ | D18: × | E18: ○ | F18: × | G18: ○ | H18: ○ | I18: ○ | M18: ○ | N18: ○ | O18: × | P18: ○ | Q18: ○ | R18: ○ | S18: ○ | T18: =Y18&" - "&Z18&" - "&AA18 -> 11 - 3 - 0 | U18: =AB18 -> 36 | V18: =ROUND(AD18,2) -> 2.57 | W18: =RANK(AD18,AD$4:AD$37) -> 3 | X18: 松山南A | Y18: =COUNTIF(C18:S18,"○") -> 11 | Z18: =COUNTIF(C18:S18,"×") -> 3 | AA18: =COUNTIF(C18:S18,"△") -> 0 | AB18: =Y18*3+Z18*1+AA18*2 -> 36 | AC18: =SUM(Y18:AA19) -> 14 | AD18: =AB18/AC18 -> 2.571428571
C19: ２－０ | D19: ０－２ | E19: ２－０ | F19: １－２ | G19: ２－０ | H19: ２－０ | I19: ２－０ | M19: ２－０ | N19: ２－０ | O19: ０－２ | P19: ２－０ | Q19: ２－０ | R19: ２－１ | S19: ２－０
A20: 9 | B20: =X20 -> 松山南B | C20: ○ | D20: △ | E20: ○ | F20: ○ | G20: ○ | H20: ○ | I20: × | M20: × | N20: ○ | O20: × | P20: ○ | Q20: × | R20: × | S20: ○ | T20: =Y20&" - "&Z20&" - "&AA20 -> 8 - 5 - 1 | U20: =AB20 -> 31 | V20: =ROUND(AD20,2) -> 2.21 | W20: =RANK(AD20,AD$4:AD$37) -> 7 | X20: 松山南B | Y20: =COUNTIF(C20:S20,"○") -> 8 | Z20: =COUNTIF(C20:S20,"×") -> 5 | AA20: =COUNTIF(C20:S20,"△") -> 1 | AB20: =Y20*3+Z20*1+AA20*2 -> 31 | AC20: =SUM(Y20:AA21) -> 14 | AD20: =AB20/AC20 -> 2.214285714
C21: ２－０ | D21: １－１ | E21: ２－０ | F21: ２－１ | G21: ２－０ | H21: ２－０ | I21: １－２ | M21: ０－２ | N21: ２－０ | O21: １－２ | P21: ２－０ | Q21: ０－２ | R21: ０－２ | S21: ２－０
A22: 10 | B22: =X22 -> 松山南C | C22: ○ | D22: × | E22: △ | F22: × | G22: △ | H22: ○ | I22: × | M22: × | N22: × | O22: × | P22: ○ | Q22: × | R22: ○ | S22: ○ | T22: =Y22&" - "&Z22&" - "&AA22 -> 5 - 7 - 2 | U22: =AB22 -> 26 | V22: =ROUND(AD22,2) -> 1.86 | W22: =RANK(AD22,AD$4:AD$37) -> 10 | X22: 松山南C | Y22: =COUNTIF(C22:S22,"○") -> 5 | Z22: =COUNTIF(C22:S22,"×") -> 7 | AA22: =COUNTIF(C22:S22,"△") -> 2 | AB22: =Y22*3+Z22*1+AA22*2 -> 26 | AC22: =SUM(Y22:AA23) -> 14 | AD22: =AB22/AC22 -> 1.857142857
C23: ２－０ | D23: ０－２ | E23: １－１ | F23: ０－２ | G23: １－１ | H23: ２－１ | I23: ０－２ | M23: １－２ | N23: ０－２ | O23: ０－２ | P23: ２－０ | Q23: ０－２ | R23: ２－１ | S23: ２－０
A24: 11 | B24: =X24 -> 今治北A | D24: × | E24: ○ | F24: × | G24: ○ | H24: ○ | I24: × | J24: × | K24: ○ | L24: ○ | O24: × | P24: ○ | Q24: × | R24: ○ | S24: ○ | T24: =Y24&" - "&Z24&" - "&AA24 -> 8 - 6 - 0 | U24: =AB24 -> 30 | V24: =ROUND(AD24,2) -> 2.14 | W24: =RANK(AD24,AD$4:AD$37) -> 9 | X24: 今治北A | Y24: =COUNTIF(C24:S24,"○") -> 8 | Z24: =COUNTIF(C24:S24,"×") -> 6 | AA24: =COUNTIF(C24:S24,"△") -> 0 | AB24: =Y24*3+Z24*1+AA24*2 -> 30 | AC24: =SUM(Y24:AA25) -> 14 | AD24: =AB24/AC24 -> 2.142857143
D25: ０－２ | E25: ２－０ | F25: ０－２ | G25: ２－０ | H25: ２－１ | I25: ０－２ | J25: ０－２ | K25: ２－０ | L25: ２－１ | O25: １－２ | P25: ２－０ | Q25: ０－２ | R25: ２－１ | S25: ２－１
A26: 12 | B26: =X26 -> 今治北B | C26: × | D26: × | E26: × | F26: × | G26: ○ | H26: ○ | I26: × | J26: × | K26: × | L26: ○ | O26: × | P26: ○ | R26: ○ | S26: ○ | T26: =Y26&" - "&Z26&" - "&AA26 -> 6 - 8 - 0 | U26: =AB26 -> 26 | V26: =ROUND(AD26,2) -> 1.86 | W26: =RANK(AD26,AD$4:AD$37) -> 10 | X26: 今治北B | Y26: =COUNTIF(C26:S26,"○") -> 6 | Z26: =COUNTIF(C26:S26,"×") -> 8 | AA26: =COUNTIF(C26:S26,"△") -> 0 | AB26: =Y26*3+Z26*1+AA26*2 -> 26 | AC26: =SUM(Y26:AA27) -> 14 | AD26: =AB26/AC26 -> 1.857142857
C27: ０－２ | D27: １－２ | E27: ０－２ | F27: １－２ | G27: ２－１ | H27: ２－０ | I27: ０－２ | J27: ０－２ | K27: ０－２ | L27: ２－０ | O27: １－２ | P27: ２－０ | R27: ２－１ | S27: ２－１
A28: 13 | B28: =X28 -> 今治西A | C28: ○ | D28: × | E28: ○ | F28: ○ | G28: ○ | H28: ○ | I28: ○ | J28: ○ | K28: ○ | L28: ○ | M28: ○ | N28: ○ | P28: ○ | Q28: ○ | R28: × | S28: ○ | T28: =Y28&" - "&Z28&" - "&AA28 -> 14 - 2 - 0 | U28: =AB28 -> 44 | V28: =ROUND(AD28,2) -> 2.75 | W28: =RANK(AD28,AD$4:AD$37) -> 2 | X28: 今治西A | Y28: =COUNTIF(C28:S28,"○") -> 14 | Z28: =COUNTIF(C28:S28,"×") -> 2 | AA28: =COUNTIF(C28:S28,"△") -> 0 | AB28: =Y28*3+Z28*1+AA28*2 -> 44 | AC28: =SUM(Y28:AA29) -> 16 | AD28: =AB28/AC28 -> 2.75
C29: ２－０ | D29: １－２ | E29: ２－０ | F29: ２－１ | G29: ２－０ | H29: ２－０ | I29: ２－０ | J29: ２－０ | K29: ２－１ | L29: ２－０ | M29: ２－１ | N29: ２－１ | P29: ２－０ | Q29: ２－０ | R29: ０－２ | S29: ２－０
A30: 14 | B30: =X30 -> 今治西B | C30: × | D30: × | E30: × | F30: × | G30: × | H30: × | I30: × | J30: × | K30: × | L30: × | M30: × | N30: × | O30: × | Q30: × | R30: × | S30: × | T30: =Y30&" - "&Z30&" - "&AA30 -> 0 - 16 - 0 | U30: =AB30 -> 16 | V30: =ROUND(AD30,2) -> 1 | W30: =RANK(AD30,AD$4:AD$37) -> 17 | X30: 今治西B | Y30: =COUNTIF(C30:S30,"○") -> 0 | Z30: =COUNTIF(C30:S30,"×") -> 16 | AA30: =COUNTIF(C30:S30,"△") -> 0 | AB30: =Y30*3+Z30*1+AA30*2 -> 16 | AC30: =SUM(Y30:AA31) -> 16 | AD30: =AB30/AC30 -> 1
C31: ０－２ | D31: ０－２ | E31: ０－２ | F31: ０－２ | G31: １－２ | H31: ０－２ | I31: ０－２ | J31: ０－２ | K31: ０－２ | L31: ０－２ | M31: ０－２ | N31: ０－２ | O31: ０－２ | Q31: ０－２ | R31: ０－２ | S31: ０－２
A32: 15 | B32: =X32 -> 宇和島東A | C32: ○ | D32: × | E32: ○ | F32: × | G32: ○ | H32: ○ | I32: × | J32: × | K32: ○ | L32: ○ | M32: ○ | O32: × | P32: ○ | R32: × | S32: ○ | T32: =Y32&" - "&Z32&" - "&AA32 -> 9 - 6 - 0 | U32: =AB32 -> 33 | V32: =ROUND(AD32,2) -> 2.2 | W32: =RANK(AD32,AD$4:AD$37) -> 8 | X32: 宇和島東A | Y32: =COUNTIF(C32:S32,"○") -> 9 | Z32: =COUNTIF(C32:S32,"×") -> 6 | AA32: =COUNTIF(C32:S32,"△") -> 0 | AB32: =Y32*3+Z32*1+AA32*2 -> 33 | AC32: =SUM(Y32:AA33) -> 15 | AD32: =AB32/AC32 -> 2.2
C33: ２－０ | D33: １－２ | E33: ２－０ | F33: １－２ | G33: ２－０ | H33: ２－０ | I33: １－２ | J33: ０－２ | K33: ２－０ | L33: ２－０ | M33: ２－０ | O33: ０－２ | P33: ２－０ | R33: ０－２ | S33: ２－０
A34: 16 | B34: =X34 -> 宇和島東B | C34: ○ | D34: × | E34: ○ | F34: ○ | G34: ○ | H34: ○ | I34: ○ | J34: × | K34: ○ | L34: × | M34: × | N34: × | O34: ○ | P34: ○ | Q34: ○ | S34: ○ | T34: =Y34&" - "&Z34&" - "&AA34 -> 11 - 5 - 0 | U34: =AB34 -> 38 | V34: =ROUND(AD34,2) -> 2.38 | W34: =RANK(AD34,AD$4:AD$37) -> 5 | X34: 宇和島東B | Y34: =COUNTIF(C34:S34,"○") -> 11 | Z34: =COUNTIF(C34:S34,"×") -> 5 | AA34: =COUNTIF(C34:S34,"△") -> 0 | AB34: =Y34*3+Z34*1+AA34*2 -> 38 | AC34: =SUM(Y34:AA35) -> 16 | AD34: =AB34/AC34 -> 2.375
C35: ２－０ | D35: ０－２ | E35: ２－０ | F35: ２－０ | G35: ２－０ | H35: ２－０ | I35: ２－０ | J35: １－２ | K35: ２－０ | L35: １－２ | M35: １－２ | N35: １－２ | O35: ２－０ | P35: ２－０ | Q35: ２－０ | S35: ２－１
A36: 17 | B36: =X36 -> 宇和島東C | C36: ○ | D36: × | E36: ○ | F36: × | G36: × | H36: ○ | I36: × | J36: × | K36: × | L36: × | M36: × | N36: × | O36: × | P36: ○ | Q36: × | R36: × | T36: =Y36&" - "&Z36&" - "&AA36 -> 4 - 12 - 0 | U36: =AB36 -> 24 | V36: =ROUND(AD36,2) -> 1.5 | W36: =RANK(AD36,AD$4:AD$37) -> 14 | X36: 宇和島東C | Y36: =COUNTIF(C36:S36,"○") -> 4 | Z36: =COUNTIF(C36:S36,"×") -> 12 | AA36: =COUNTIF(C36:S36,"△") -> 0 | AB36: =Y36*3+Z36*1+AA36*2 -> 24 | AC36: =SUM(Y36:AA37) -> 16 | AD36: =AB36/AC36 -> 1.5
C37: ２－０ | D37: ０－２ | E37: ２－１ | F37: １－２ | G37: ０－２ | H37: ２－０ | I37: １－２ | J37: ０－２ | K37: ０－２ | L37: ０－２ | M37: １－２ | N37: １－２ | O37: ０－２ | P37: ２－０ | Q37: ０－２ | R37: １－２
C39: ※ | D39: ポイントは「勝→３点、分→２点、負→１点、棄権→０点」で計算。得点率は「ポイント÷試合数」で計算。
C40: ※ | D40: 今治北Bと松山南C、伊予農業Dと和歌山商業Bは同率のため、直接対決の結果により順位を決定。
